Body Name,Body,Service Division Label,Service Division Code,Organisational Unit,Expenditure Category,Expenditure Code,CIPFA detailed expediture type,CIPFA detailed expediture code,Narrative,Date,Transaction number,Net Amount,Capital and Revenue,Supplier Name,Supplier ID,,
Chorley Borough Council,http://statistics.data.gov.uk/id/local-authority/30UE,Corporate Management,1008,EARL - Communities,Other Contributions,40145,Grants and Subscriptions,5031,Delivery of support for residents experiencing financial hardship,02/12/2022,0174201,"3,000.00",Revenue,#Watch Us Grow,78296,,
Chorley Borough Council,http://statistics.data.gov.uk/id/local-authority/30UE,Central Support Services,1009,CUST - Customer & Digital,Professional Fees,14011,Direct Employee Expenses,5001,"Council Tax Reduction Update Service Support
for 2023 scheme",14/12/2022,0174274,550.00,Revenue,ACS Ltd,56512,,
Chorley Borough Council,http://statistics.data.gov.uk/id/local-authority/30UE,Business Support,1095,GROW - Commercial & Property,Stationery,40050,"Printing, Stationery & General",5026,Re Market Walk manual clocking machine:,02/12/2022,0174250,361.00,Revenue,Addtime Recording Company Ltd,21890,,
Chorley Borough Council,http://statistics.data.gov.uk/id/local-authority/30UE,Central Support Services,1009,CUST - Customer & Digital,Telephones - Other,40085,Communication and Computing,5028,Adept Telecom - September 22,14/12/2022,0170856,"1,810.43",Revenue,Adept Telecom PLC,77452,,
Chorley Borough Council,http://statistics.data.gov.uk/id/local-authority/30UE,Central Support Services,1009,CUST - Customer & Digital,Telephones - Other,40085,Communication and Computing,5028,Adept Telecom - November 22,14/12/2022,0173273,"1,810.43",Revenue,Adept Telecom PLC,77452,,
Chorley Borough Council,http://statistics.data.gov.uk/id/local-authority/30UE,Central Support Services,1009,CUST - Customer & Digital,Telephones - Other,40085,Communication and Computing,5028,Adept Telecom - January 2023,21/12/2022,0174132,"1,810.43",Revenue,Adept Telecom PLC,77452,,
Chorley Borough Council,http://statistics.data.gov.uk/id/local-authority/30UE,Service Management & Support,1009,CUST - Customer & Digital,Supplies-Grounds Maintenance,40025,"Equipment, Furniture & Materia",5023,As per Quotation- 20243560 From NAME REDACTED,02/12/2022,0174397,259.35,Revenue,Aebi Schmidt UK Ltd,17287,,
Chorley Borough Council,http://statistics.data.gov.uk/id/local-authority/30UE,Business Support,1095,GROW - Commercial & Property,Misc Expenses,40200,Miscellaneous Expenses,5034,"Choose Chorley Webinars x 5 Instagram, Facebook, Linkedin, Content, Analytics",14/12/2022,0174533,"1,250.00",Revenue,Alex McCann - Altrincham HQ,81286,,
Chorley Borough Council,http://statistics.data.gov.uk/id/local-authority/30UE,Central Support Services,1009,CUST - Customer & Digital,Bank Charges,40151,Miscellaneous Expenses,5034,a/c fee,21/12/2022,0174684,10.00,Revenue,Allpay Net Ltd,17242,,
Chorley Borough Council,http://statistics.data.gov.uk/id/local-authority/30UE,Central Support Services,1009,CUST - Customer & Digital,Bank Charges,40151,Miscellaneous Expenses,5034,post off,21/12/2022,0174684,561.20,Revenue,Allpay Net Ltd,17242,,
Chorley Borough Council,http://statistics.data.gov.uk/id/local-authority/30UE,Central Support Services,1009,CUST - Customer & Digital,Bank Charges,40151,Miscellaneous Expenses,5034,paypoint,21/12/2022,0174684,155.96,Revenue,Allpay Net Ltd,17242,,
Chorley Borough Council,http://statistics.data.gov.uk/id/local-authority/30UE,Central Support Services,1009,CUST - Customer & Digital,Bank Charges,40151,Miscellaneous Expenses,5034,webconn,21/12/2022,0174684,46.00,Revenue,Allpay Net Ltd,17242,,
Chorley Borough Council,http://statistics.data.gov.uk/id/local-authority/30UE,Capital,Capital,PLAN - Planning & Development,Main Contractor,03007,Capital Expenditure,Capital,Installation and commissioning of lighting bollards at West Way Sports Hub,14/12/2022,0174464,"16,387.50",Capital,Altitude Services Ltd,77719,,
Chorley Borough Council,http://statistics.data.gov.uk/id/local-authority/30UE,Central Support Services,1009,GROW - Commercial & Property,General Repairs - Reactive,20004,Repairs Maintenance & Alts,5005,Primrose   - Security Systems Reactive Repairs,14/12/2022,0173953,361.25,Revenue,Amalgamated Ltd,78289,,
Chorley Borough Council,http://statistics.data.gov.uk/id/local-authority/30UE,Business Support,1095,GROW - Commercial & Property,Planned Maintenance,20006,Repairs Maintenance & Alts,5005,MW Ext    Market Walk Extension   - Security systems Planned Maintenance and remedials,14/12/2022,0174335,250.00,Revenue,Amalgamated Ltd,78289,,
Chorley Borough Council,http://statistics.data.gov.uk/id/local-authority/30UE,Central Support Services,1009,CUST - Customer & Digital,Computer Software-Additional,40102,Communication and Computing,5028,Amazon AWS web services - 718576685325 Cloud charges November 2022,21/12/2022,0174779,"5,535.27",Revenue,Amazon Web Services EMEA SARL,80604,,
Chorley Borough Council,http://statistics.data.gov.uk/id/local-authority/30UE,Central Support Services,1009,GOVN - Policy & Governance,Refreshments,40036,Catering,5024,angel springs water supply,21/12/2022,0174799,845.37,Revenue,Angel Springs Ltd T/A Waterlogic UK,77689,,
Chorley Borough Council,http://statistics.data.gov.uk/id/local-authority/30UE,Central Support Services,1009,GOVN - Policy & Governance,Refreshments,40036,Catering,5024,angel springs water supply,21/12/2022,0174855,"1,593.48",Revenue,Angel Springs Ltd T/A Waterlogic UK,77689,,
Chorley Borough Council,http://statistics.data.gov.uk/id/local-authority/30UE,Central Support Services,1009,GOVN - Policy & Governance,Misc Expenses,40200,Miscellaneous Expenses,5034,November`s hosting of WordPress websites (UK Fast),02/12/2022,0174183,297.55,Revenue,ANS Group Limited,74638,,
Chorley Borough Council,http://statistics.data.gov.uk/id/local-authority/30UE,Capital,Capital,GROW - Commercial & Property,Consultants Fees,03025,Capital Expenditure,Capital,Tatton - Cladding Inspection and Independent Report of Findings,14/12/2022,0174587,"2,980.00",Capital,AP WILLIAMSON CONSULTANTS LTD,85472,,
Chorley Borough Council,http://statistics.data.gov.uk/id/local-authority/30UE,Planning Policy,1092,PLAN - Planning & Development,Professional Fees,40063,Services,5027,Preston City Council and Chorley Council Housing Need and Demand Assessment,14/12/2022,0174523,678.30,Revenue,Arc4,60831,,
Chorley Borough Council,http://statistics.data.gov.uk/id/local-authority/30UE,Planning Policy,1092,PLAN - Planning & Development,Consultants` Fees,40077,Services,5027,Local Plan Support: GTAA Review & Policy Development,21/12/2022,0174532,"2,500.00",Revenue,Arc4,60831,,
Chorley Borough Council,http://statistics.data.gov.uk/id/local-authority/30UE,Control Accounts,Control,CUST - Customer & Digital,Manual Control Account,00001,Balance Sheet,Balance,refund of payment made in error,07/12/2022,0174442,262.00,Revenue,Asda Stores Ltd,87042,,
Chorley Borough Council,http://statistics.data.gov.uk/id/local-authority/30UE,Central Support Services,1009,GOVN - Policy & Governance,Consultants` Fees,40077,Services,5027,"Follow-up VAT analysis and CGT/SDLT advisory note, including joint meetings with legal advisors and council officers.",02/12/2022,0174441,"11,500.00",Revenue,Azets Holdings Ltd,86389,,
Chorley Borough Council,http://statistics.data.gov.uk/id/local-authority/30UE,Service Management & Support,1009,CUST - Customer & Digital,Supplies - Workshop,40246,"Equipment, Furniture & Materia",5023,As per Quote No Q16229,14/12/2022,0174253,308.74,Revenue,Balmers Garden Machinery,17075,,
Chorley Borough Council,http://statistics.data.gov.uk/id/local-authority/30UE,Capital,Capital,PLAN - Planning & Development,Main Contractor,03007,Capital Expenditure,Capital,"Delivery to Bengal St with previous order for King George V. All 12-14 size bare root native trees:-  3nr wild cherry, 1 rowan,",14/12/2022,0174031,"1,024.50",Capital,Bannister Hall Ltd,22515,,
Chorley Borough Council,http://statistics.data.gov.uk/id/local-authority/30UE,Capital,Capital,PLAN - Planning & Development,Main Contractor,03007,Capital Expenditure,Capital,Bulk tree order for Nov 2022 as set out on the spreadsheet for direct delivery to numerous locations.,21/12/2022,0174586,"8,454.89",Capital,Bannister Hall Ltd,22515,,
Chorley Borough Council,http://statistics.data.gov.uk/id/local-authority/30UE,Central Support Services,1009,CUST - Customer & Digital,Newsletter Production,40166,Miscellaneous Expenses,5034,"Production of 2023 Waste Collection Calendars. 25 Versions, Quantity = 57,800. As per Quote no. 189851",02/12/2022,0174256,"2,465.00",Revenue,BHW Print Group,77459,,
Chorley Borough Council,http://statistics.data.gov.uk/id/local-authority/30UE,Central Support Services,1009,CUST - Customer & Digital,IT Software - Annual Licences,40101,Communication and Computing,5028,BGS Digital Data Licence 3yr - 2009/049RAD,14/12/2022,0170936,314.51,Revenue,British Geological Survey,21160,,
Chorley Borough Council,http://statistics.data.gov.uk/id/local-authority/30UE,Central Support Services,1009,GROW - Commercial & Property,General Repairs - Reactive,20004,Repairs Maintenance & Alts,5005,Cemeteries - Reactive repair works,14/12/2022,0174591,875.98,Revenue,Bryan Lee Building Contractors Ltd,78160,,
Chorley Borough Council,http://statistics.data.gov.uk/id/local-authority/30UE,Central Support Services,1009,GROW - Commercial & Property,General Repairs - Reactive,20004,Repairs Maintenance & Alts,5005,community centres - Reactive repair works,14/12/2022,0174676,943.79,Revenue,Bryan Lee Building Contractors Ltd,78160,,
Chorley Borough Council,http://statistics.data.gov.uk/id/local-authority/30UE,Central Support Services,1009,GROW - Commercial & Property,General Repairs - Reactive,20004,Repairs Maintenance & Alts,5005,Cemeteries - Reactive repair works,21/12/2022,0174678,460.01,Revenue,Bryan Lee Building Contractors Ltd,78160,,
Chorley Borough Council,http://statistics.data.gov.uk/id/local-authority/30UE,Central Support Services,1009,GROW - Commercial & Property,General Repairs - Reactive,20004,Repairs Maintenance & Alts,5005,Town Hall - Reactive repair works,14/12/2022,0174693,325.18,Revenue,Bryan Lee Building Contractors Ltd,78160,,
Chorley Borough Council,http://statistics.data.gov.uk/id/local-authority/30UE,Central Support Services,1009,GROW - Commercial & Property,General Repairs - Reactive,20004,Repairs Maintenance & Alts,5005,Housing - Reactive repair works,14/12/2022,0174696,"2,646.71",Revenue,Bryan Lee Building Contractors Ltd,78160,,
Chorley Borough Council,http://statistics.data.gov.uk/id/local-authority/30UE,Business Support,1095,GROW - Commercial & Property,General Repairs - Reactive,20004,Repairs Maintenance & Alts,5005,MW EXT -   Market Walk Extension - Reactive repair works,14/12/2022,0174699,251.97,Revenue,Bryan Lee Building Contractors Ltd,78160,,
Chorley Borough Council,http://statistics.data.gov.uk/id/local-authority/30UE,Central Support Services,1009,GROW - Commercial & Property,General Repairs - Reactive,20004,Repairs Maintenance & Alts,5005,Cemeteries - Reactive repair works,14/12/2022,0174704,432.80,Revenue,Bryan Lee Building Contractors Ltd,78160,,
Chorley Borough Council,http://statistics.data.gov.uk/id/local-authority/30UE,Central Support Services,1009,GROW - Commercial & Property,General Repairs - Reactive,20004,Repairs Maintenance & Alts,5005,Cemeteries - Reactive repair works,14/12/2022,0174706,"1,915.12",Revenue,Bryan Lee Building Contractors Ltd,78160,,
Chorley Borough Council,http://statistics.data.gov.uk/id/local-authority/30UE,Capital,Capital,GROW - Commercial & Property,Main Contractor,03007,Capital Expenditure,Capital,Astley Hall Renovation and Conservation Project works,21/12/2022,0174856,"60,236.91",Capital,Bullen Conservation Ltd,68424,,
Chorley Borough Council,http://statistics.data.gov.uk/id/local-authority/30UE,Service Management & Support,1009,CUST - Customer & Digital,External Contractor,40198,Miscellaneous Expenses,5034,Bengal St Depot � Empty yard catch pits each month � Empty yard interceptor every 3 months � Rowan Croft Pond � Jet outlet ,14/12/2022,0173306,390.00,Revenue,C J Lyon,16579,,
Chorley Borough Council,http://statistics.data.gov.uk/id/local-authority/30UE,Service Management & Support,1009,CUST - Customer & Digital,External Contractor,40198,Miscellaneous Expenses,5034,Bengal St Depot � Empty yard catch pits each month � Empty yard interceptor every 3 months � Rowan Croft Pond � Jet outlet ,14/12/2022,0173918,750.00,Revenue,C J Lyon,16579,,
Chorley Borough Council,http://statistics.data.gov.uk/id/local-authority/30UE,Building Control,1090,PLAN - Planning & Development,Agency Staff,13000,Direct Employee Expenses,5001,Agency fees for Building Control Officer NAME REDACTED July 2022 ongoing contract,14/12/2022,0174488,"1,116.00",Revenue,Carrington West Ltd,83124,,
Chorley Borough Council,http://statistics.data.gov.uk/id/local-authority/30UE,Building Control,1090,PLAN - Planning & Development,Agency Staff,13000,Direct Employee Expenses,5001,Agency fees for Building Control Officer NAME REDACTED July 2022 ongoing contract,14/12/2022,0174495,"1,116.00",Revenue,Carrington West Ltd,83124,,
Chorley Borough Council,http://statistics.data.gov.uk/id/local-authority/30UE,Building Control,1090,PLAN - Planning & Development,Agency Staff,13000,Direct Employee Expenses,5001,Agency fees for Building Control Officer NAME REDACTED July 2022 ongoing contract,21/12/2022,0174553,"1,560.00",Revenue,Carrington West Ltd,83124,,
Chorley Borough Council,http://statistics.data.gov.uk/id/local-authority/30UE,Building Control,1090,PLAN - Planning & Development,Agency Staff,13000,Direct Employee Expenses,5001,Agency fees for Building Control Officer NAME REDACTED July 2022 ongoing contract,21/12/2022,0174672,"1,128.00",Revenue,Carrington West Ltd,83124,,
Chorley Borough Council,http://statistics.data.gov.uk/id/local-authority/30UE,Tourism,1039,GOVN - Policy & Governance,Tools & Equipment - Hire,40004,"Equipment, Furniture & Materia",5023,Hire of Generator and 3000 litre bulk tank for the Ice Rink in Chorley town centre at Christmastime. ,21/12/2022,0174762,"1,931.25",Revenue,Central Power Services Limited,78399,,
Chorley Borough Council,http://statistics.data.gov.uk/id/local-authority/30UE,Parking Services,1066,GROW - Commercial & Property,External Contractors,50008,Private Contractors,5042,Processing Services for period 01.04.2022-31.03.2023 Notice Processing Services Automated Telephone and Internet Payments,02/12/2022,0174227,253.17,Revenue,Chipside Ltd,22063,,
Chorley Borough Council,http://statistics.data.gov.uk/id/local-authority/30UE,Parking Services,1066,GROW - Commercial & Property,External Contractors,50008,Private Contractors,5042,MIPERMIT FEES MIPERMIT CHARGE ELECPAY BANK FEE,02/12/2022,0174227,48.30,Revenue,Chipside Ltd,22063,,
Chorley Borough Council,http://statistics.data.gov.uk/id/local-authority/30UE,Democratic Represent and  Mgnt,1007,GOVN - Policy & Governance,Mayoral Hospitality,40123,Expenses,5030,Gold envelopes,01/12/2022,0174354,8.32,Revenue,Chorley BC Petty Cash,16301,,
Chorley Borough Council,http://statistics.data.gov.uk/id/local-authority/30UE,Central Support Services,1009,GOVN - Policy & Governance,Tools & Equipment - Purchase,40003,"Equipment, Furniture & Materia",5023,Prize draw box,01/12/2022,0174354,4.99,Revenue,Chorley BC Petty Cash,16301,,
Chorley Borough Council,http://statistics.data.gov.uk/id/local-authority/30UE,Central Support Services,1009,GOVN - Policy & Governance,Refreshments,40036,Catering,5024,Milk,01/12/2022,0174354,2.30,Revenue,Chorley BC Petty Cash,16301,,
Chorley Borough Council,http://statistics.data.gov.uk/id/local-authority/30UE,Central Support Services,1009,GOVN - Policy & Governance,Tools & Equipment - Purchase,40003,"Equipment, Furniture & Materia",5023,Keys,01/12/2022,0174354,18.00,Revenue,Chorley BC Petty Cash,16301,,
Chorley Borough Council,http://statistics.data.gov.uk/id/local-authority/30UE,Elections,1012,GOVN - Policy & Governance,Stationery,40050,"Printing, Stationery & General",5026,Stamp Pad,01/12/2022,0174354,4.99,Revenue,Chorley BC Petty Cash,16301,,
Chorley Borough Council,http://statistics.data.gov.uk/id/local-authority/30UE,Central Support Services,1009,GOVN - Policy & Governance,Postages,40082,Communication and Computing,5028,Postage,01/12/2022,0174354,15.75,Revenue,Chorley BC Petty Cash,16301,,
Chorley Borough Council,http://statistics.data.gov.uk/id/local-authority/30UE,Central Support Services,1009,GOVN - Policy & Governance,Stationery,40050,"Printing, Stationery & General",5026,Marker Pens,01/12/2022,0174354,4.16,Revenue,Chorley BC Petty Cash,16301,,
Chorley Borough Council,http://statistics.data.gov.uk/id/local-authority/30UE,Central Support Services,1009,GOVN - Policy & Governance,Postages,40082,Communication and Computing,5028,Postage,01/12/2022,0174354,13.34,Revenue,Chorley BC Petty Cash,16301,,
Chorley Borough Council,http://statistics.data.gov.uk/id/local-authority/30UE,Central Support Services,1009,GOVN - Policy & Governance,Tools & Equipment - Purchase,40003,"Equipment, Furniture & Materia",5023,Keys,01/12/2022,0174354,9.00,Revenue,Chorley BC Petty Cash,16301,,
Chorley Borough Council,http://statistics.data.gov.uk/id/local-authority/30UE,Elections,1012,GOVN - Policy & Governance,Tools & Equipment - Purchase,40003,"Equipment, Furniture & Materia",5023,Milk and Sugar,01/12/2022,0174354,3.27,Revenue,Chorley BC Petty Cash,16301,,
Chorley Borough Council,http://statistics.data.gov.uk/id/local-authority/30UE,Elections,1012,GOVN - Policy & Governance,Tools & Equipment - Purchase,40003,"Equipment, Furniture & Materia",5023,BAtteries,01/12/2022,0174354,6.50,Revenue,Chorley BC Petty Cash,16301,,
Chorley Borough Council,http://statistics.data.gov.uk/id/local-authority/30UE,Elections,1012,GOVN - Policy & Governance,Tools & Equipment - Purchase,40003,"Equipment, Furniture & Materia",5023,Door Mat,01/12/2022,0174354,20.00,Revenue,Chorley BC Petty Cash,16301,,
Chorley Borough Council,http://statistics.data.gov.uk/id/local-authority/30UE,Elections,1012,GOVN - Policy & Governance,Tools & Equipment - Purchase,40003,"Equipment, Furniture & Materia",5023,LED Worklights,01/12/2022,0174354,23.32,Revenue,Chorley BC Petty Cash,16301,,
Chorley Borough Council,http://statistics.data.gov.uk/id/local-authority/30UE,Central Support Services,1009,GOVN - Policy & Governance,Refreshments,40036,Catering,5024,milk,01/12/2022,0174354,3.78,Revenue,Chorley BC Petty Cash,16301,,
Chorley Borough Council,http://statistics.data.gov.uk/id/local-authority/30UE,Central Support Services,1009,GOVN - Policy & Governance,Refreshments,40036,Catering,5024,Pepsi Max for meeting,01/12/2022,0174354,4.50,Revenue,Chorley BC Petty Cash,16301,,
Chorley Borough Council,http://statistics.data.gov.uk/id/local-authority/30UE,Central Support Services,1009,GOVN - Policy & Governance,Mayoral Hospitality,40123,Expenses,5030,Battery tea lights for mayors civic dinner,01/12/2022,0174354,5.98,Revenue,Chorley BC Petty Cash,16301,,
Chorley Borough Council,http://statistics.data.gov.uk/id/local-authority/30UE,Democratic Represent and  Mgnt,1007,GOVN - Policy & Governance,Use Of Transport - Mayoral Car,30015,Transport Recharges,5017,Car wash for mayors car,01/12/2022,0174354,7.00,Revenue,Chorley BC Petty Cash,16301,,
Chorley Borough Council,http://statistics.data.gov.uk/id/local-authority/30UE,Democratic Represent and  Mgnt,1007,GOVN - Policy & Governance,Misc Expenses,40200,Miscellaneous Expenses,5034,taxi fayre on mayors duties,01/12/2022,0174354,16.00,Revenue,Chorley BC Petty Cash,16301,,
Chorley Borough Council,http://statistics.data.gov.uk/id/local-authority/30UE,Central Support Services,1009,GOVN - Policy & Governance,Tools & Equipment - Purchase,40003,"Equipment, Furniture & Materia",5023,Candle lighters,01/12/2022,0174354,3.50,Revenue,Chorley BC Petty Cash,16301,,
Chorley Borough Council,http://statistics.data.gov.uk/id/local-authority/30UE,Central Support Services,1009,GOVN - Policy & Governance,Tools & Equipment - Purchase,40003,"Equipment, Furniture & Materia",5023,clock,01/12/2022,0174354,18.00,Revenue,Chorley BC Petty Cash,16301,,
Chorley Borough Council,http://statistics.data.gov.uk/id/local-authority/30UE,Central Support Services,1009,GOVN - Policy & Governance,Uniforms,40039,"Clothing, Uniforms and Laundry",5025,trousers and blouse,01/12/2022,0174354,26.99,Revenue,Chorley BC Petty Cash,16301,,
Chorley Borough Council,http://statistics.data.gov.uk/id/local-authority/30UE,Development Control,1091,GOVN - Policy & Governance,Postages,40082,Communication and Computing,5028,postage,01/12/2022,0174354,2.08,Revenue,Chorley BC Petty Cash,16301,,
Chorley Borough Council,http://statistics.data.gov.uk/id/local-authority/30UE,Central Support Services,1009,GOVN - Policy & Governance,Uniforms,40039,"Clothing, Uniforms and Laundry",5025,Dry cleaning,01/12/2022,0174354,16.75,Revenue,Chorley BC Petty Cash,16301,,
Chorley Borough Council,http://statistics.data.gov.uk/id/local-authority/30UE,Democratic Represent and  Mgnt,1007,GOVN - Policy & Governance,Use Of Transport - Mayoral Car,30015,Transport Recharges,5017,Car wash for mayors car,01/12/2022,0174354,8.49,Revenue,Chorley BC Petty Cash,16301,,
Chorley Borough Council,http://statistics.data.gov.uk/id/local-authority/30UE,Democratic Represent and  Mgnt,1007,GOVN - Policy & Governance,Use Of Transport - Mayoral Car,30015,Transport Recharges,5017,Car wash for mayors car,01/12/2022,0174354,2.99,Revenue,Chorley BC Petty Cash,16301,,
Chorley Borough Council,http://statistics.data.gov.uk/id/local-authority/30UE,Central Support Services,1009,GOVN - Policy & Governance,Tools & Equipment - Purchase,40003,"Equipment, Furniture & Materia",5023,Keys,01/12/2022,0174354,12.00,Revenue,Chorley BC Petty Cash,16301,,
Chorley Borough Council,http://statistics.data.gov.uk/id/local-authority/30UE,Central Support Services,1009,GOVN - Policy & Governance,Tools & Equipment - Purchase,40003,"Equipment, Furniture & Materia",5023,Black Ribbon,01/12/2022,0174354,5.90,Revenue,Chorley BC Petty Cash,16301,,
Chorley Borough Council,http://statistics.data.gov.uk/id/local-authority/30UE,Democratic Represent and  Mgnt,1007,GOVN - Policy & Governance,Use Of Transport - Mayoral Car,30015,Transport Recharges,5017,Car parking for mayor,01/12/2022,0174354,35.00,Revenue,Chorley BC Petty Cash,16301,,
Chorley Borough Council,http://statistics.data.gov.uk/id/local-authority/30UE,Central Support Services,1009,GOVN - Policy & Governance,Cleaning Materials,40019,"Equipment, Furniture & Materia",5023,cleaning supplies,01/12/2022,0174354,15.98,Revenue,Chorley BC Petty Cash,16301,,
Chorley Borough Council,http://statistics.data.gov.uk/id/local-authority/30UE,Central Support Services,1009,GOVN - Policy & Governance,Tools & Equipment - Purchase,40003,"Equipment, Furniture & Materia",5023,spray grease,01/12/2022,0174354,6.24,Revenue,Chorley BC Petty Cash,16301,,
Chorley Borough Council,http://statistics.data.gov.uk/id/local-authority/30UE,Central Support Services,1009,GOVN - Policy & Governance,Cleaning Materials,40019,"Equipment, Furniture & Materia",5023,Washing tablets,01/12/2022,0174354,5.97,Revenue,Chorley BC Petty Cash,16301,,
Chorley Borough Council,http://statistics.data.gov.uk/id/local-authority/30UE,Central Support Services,1009,GOVN - Policy & Governance,Refreshments,40036,Catering,5024,Milk,01/12/2022,0174354,7.25,Revenue,Chorley BC Petty Cash,16301,,
Chorley Borough Council,http://statistics.data.gov.uk/id/local-authority/30UE,Central Support Services,1009,GOVN - Policy & Governance,Tools & Equipment - Purchase,40003,"Equipment, Furniture & Materia",5023,LED Bulb,01/12/2022,0174354,3.13,Revenue,Chorley BC Petty Cash,16301,,
Chorley Borough Council,http://statistics.data.gov.uk/id/local-authority/30UE,Democratic Represent and  Mgnt,1007,GOVN - Policy & Governance,Use Of Transport - Mayoral Car,30015,Transport Recharges,5017,Car wash for mayors car,01/12/2022,0174354,10.00,Revenue,Chorley BC Petty Cash,16301,,
Chorley Borough Council,http://statistics.data.gov.uk/id/local-authority/30UE,Central Support Services,1009,GOVN - Policy & Governance,Stationery,40050,"Printing, Stationery & General",5026,postage,01/12/2022,0174354,9.40,Revenue,Chorley BC Petty Cash,16301,,
Chorley Borough Council,http://statistics.data.gov.uk/id/local-authority/30UE,Tourism,1039,GOVN - Policy & Governance,Misc Expenses,40200,Miscellaneous Expenses,5034,Pavillion keys,01/12/2022,0174354,30.00,Revenue,Chorley BC Petty Cash,16301,,
Chorley Borough Council,http://statistics.data.gov.uk/id/local-authority/30UE,Tourism,1039,GOVN - Policy & Governance,Misc Expenses,40200,Miscellaneous Expenses,5034,Pavillion Keys,01/12/2022,0174354,35.00,Revenue,Chorley BC Petty Cash,16301,,
Chorley Borough Council,http://statistics.data.gov.uk/id/local-authority/30UE,Tourism,1039,GOVN - Policy & Governance,Misc Expenses,40200,Miscellaneous Expenses,5034,Line marking paint,01/12/2022,0174354,11.98,Revenue,Chorley BC Petty Cash,16301,,
Chorley Borough Council,http://statistics.data.gov.uk/id/local-authority/30UE,Central Support Services,1009,GOVN - Policy & Governance,Stationery,40050,"Printing, Stationery & General",5026,postage,01/12/2022,0174354,6.85,Revenue,Chorley BC Petty Cash,16301,,
Chorley Borough Council,http://statistics.data.gov.uk/id/local-authority/30UE,Corporate Management,1008,GOVN - Policy & Governance,Misc Expenses,40200,Miscellaneous Expenses,5034,Gift Card,01/12/2022,0174354,25.00,Revenue,Chorley BC Petty Cash,16301,,
Chorley Borough Council,http://statistics.data.gov.uk/id/local-authority/30UE,Central Support Services,1009,GOVN - Policy & Governance,Refreshments,40036,Catering,5024,Teabags,01/12/2022,0174354,3.29,Revenue,Chorley BC Petty Cash,16301,,
Chorley Borough Council,http://statistics.data.gov.uk/id/local-authority/30UE,Central Support Services,1009,GOVN - Policy & Governance,Tools & Equipment - Purchase,40003,"Equipment, Furniture & Materia",5023,post it notes,01/12/2022,0174354,2.00,Revenue,Chorley BC Petty Cash,16301,,
Chorley Borough Council,http://statistics.data.gov.uk/id/local-authority/30UE,Central Support Services,1009,GOVN - Policy & Governance,Refreshments,40036,Catering,5024,cakes,01/12/2022,0174354,11.15,Revenue,Chorley BC Petty Cash,16301,,
Chorley Borough Council,http://statistics.data.gov.uk/id/local-authority/30UE,Democratic Represent and  Mgnt,1007,GOVN - Policy & Governance,Use Of Transport - Mayoral Car,30015,Transport Recharges,5017,Car wash for mayors car,01/12/2022,0174354,10.00,Revenue,Chorley BC Petty Cash,16301,,
Chorley Borough Council,http://statistics.data.gov.uk/id/local-authority/30UE,Central Support Services,1009,GOVN - Policy & Governance,Refreshments,40036,Catering,5024,Milk,01/12/2022,0174354,6.00,Revenue,Chorley BC Petty Cash,16301,,
Chorley Borough Council,http://statistics.data.gov.uk/id/local-authority/30UE,Democratic Represent and  Mgnt,1007,GOVN - Policy & Governance,Members Hospitality,40122,Expenses,5030,Cakes,01/12/2022,0174354,15.30,Revenue,Chorley BC Petty Cash,16301,,
Chorley Borough Council,http://statistics.data.gov.uk/id/local-authority/30UE,Central Support Services,1009,GOVN - Policy & Governance,Stationery,40050,"Printing, Stationery & General",5026,postage,01/12/2022,0174354,21.15,Revenue,Chorley BC Petty Cash,16301,,
Chorley Borough Council,http://statistics.data.gov.uk/id/local-authority/30UE,Central Support Services,1009,GOVN - Policy & Governance,Tools & Equipment - Purchase,40003,"Equipment, Furniture & Materia",5023,dishwasher tablets,01/12/2022,0174354,9.49,Revenue,Chorley BC Petty Cash,16301,,
Chorley Borough Council,http://statistics.data.gov.uk/id/local-authority/30UE,Central Support Services,1009,GOVN - Policy & Governance,Refreshments,40036,Catering,5024,Tea bags,01/12/2022,0174354,4.95,Revenue,Chorley BC Petty Cash,16301,,
Chorley Borough Council,http://statistics.data.gov.uk/id/local-authority/30UE,Central Support Services,1009,GOVN - Policy & Governance,Refreshments,40036,Catering,5024,refreshments for meeting,01/12/2022,0174354,29.85,Revenue,Chorley BC Petty Cash,16301,,
Chorley Borough Council,http://statistics.data.gov.uk/id/local-authority/30UE,Central Support Services,1009,GOVN - Policy & Governance,Refreshments,40036,Catering,5024,Milk for licensing committee,01/12/2022,0174354,3.10,Revenue,Chorley BC Petty Cash,16301,,
Chorley Borough Council,http://statistics.data.gov.uk/id/local-authority/30UE,Democratic Represent and  Mgnt,1007,GOVN - Policy & Governance,Use Of Transport - Mayoral Car,30015,Transport Recharges,5017,Car wash for mayors car,01/12/2022,0174354,7.00,Revenue,Chorley BC Petty Cash,16301,,
Chorley Borough Council,http://statistics.data.gov.uk/id/local-authority/30UE,Central Support Services,1009,GOVN - Policy & Governance,Refreshments,40036,Catering,5024,milk for planning committee,01/12/2022,0174354,3.10,Revenue,Chorley BC Petty Cash,16301,,
Chorley Borough Council,http://statistics.data.gov.uk/id/local-authority/30UE,Democratic Represent and  Mgnt,1007,GOVN - Policy & Governance,Use Of Transport - Mayoral Car,30015,Transport Recharges,5017,Car wash for mayors car,01/12/2022,0174354,7.99,Revenue,Chorley BC Petty Cash,16301,,
Chorley Borough Council,http://statistics.data.gov.uk/id/local-authority/30UE,Central Support Services,1009,GOVN - Policy & Governance,Tools & Equipment - Purchase,40003,"Equipment, Furniture & Materia",5023,Wall planner,01/12/2022,0174354,6.66,Revenue,Chorley BC Petty Cash,16301,,
Chorley Borough Council,http://statistics.data.gov.uk/id/local-authority/30UE,Central Support Services,1009,GOVN - Policy & Governance,Tools & Equipment - Purchase,40003,"Equipment, Furniture & Materia",5023,Cushions,01/12/2022,0174354,27.33,Revenue,Chorley BC Petty Cash,16301,,
Chorley Borough Council,http://statistics.data.gov.uk/id/local-authority/30UE,Central Support Services,1009,GOVN - Policy & Governance,Refreshments,40036,Catering,5024,Milk,01/12/2022,0174354,5.10,Revenue,Chorley BC Petty Cash,16301,,
Chorley Borough Council,http://statistics.data.gov.uk/id/local-authority/30UE,Central Support Services,1009,GOVN - Policy & Governance,Tools & Equipment - Purchase,40003,"Equipment, Furniture & Materia",5023,Wood wool for packaging - charity,01/12/2022,0174354,7.48,Revenue,Chorley BC Petty Cash,16301,,
Chorley Borough Council,http://statistics.data.gov.uk/id/local-authority/30UE,Central Support Services,1009,GOVN - Policy & Governance,Cleaning Materials,40019,"Equipment, Furniture & Materia",5023,Dihwasher tablets x 2 packs,01/12/2022,0174354,19.99,Revenue,Chorley BC Petty Cash,16301,,
Chorley Borough Council,http://statistics.data.gov.uk/id/local-authority/30UE,Homelessness,1075,EARL - Communities,Misc Expenses,40200,Miscellaneous Expenses,5034,Syrian resettlement programme,01/12/2022,0174392,500.00,Revenue,Chorley BC Petty Cash,16301,,
Chorley Borough Council,http://statistics.data.gov.uk/id/local-authority/30UE,Democratic Represent and  Mgnt,1007,GOVN - Policy & Governance,Other Contributions,40145,Grants and Subscriptions,5031,Donation from the Mayor 2020-2021.,14/12/2022,0174460,"1,000.00",Revenue,Chorley Sheds,77469,,
Chorley Borough Council,http://statistics.data.gov.uk/id/local-authority/30UE,Corporate Management,1008,EARL - Communities,Grants to Chorley T.C.Initiative,40128,Grants and Subscriptions,5031,Delivery of Household Support Fund Phase 3 Energy Support,07/12/2022,0174507,"85,500.00",Revenue,Citizens Advice Lancashire,17035,,
Chorley Borough Council,http://statistics.data.gov.uk/id/local-authority/30UE,Economic Development,1096,GROW - Commercial & Property,Tools & Equipment - Maintenance,40005,"Equipment, Furniture & Materia",5023,"could i please order 2 complete corner legs, 4 corner legs & 2 centre legs for gazebos. Thankyou",21/12/2022,0174279,325.00,Revenue,City B Group Ltd,47300,,
Chorley Borough Council,http://statistics.data.gov.uk/id/local-authority/30UE,Central Support Services,1009,GROW - Commercial & Property,Misc Expenses,40200,Miscellaneous Expenses,5034,Please supply 8 x column conversions at Lidl roundabout Clayton Green as discussed,21/12/2022,0174195,"1,800.00",Revenue,City Illuminations Ltd,77388,,
Chorley Borough Council,http://statistics.data.gov.uk/id/local-authority/30UE,Economic Development,1096,GROW - Commercial & Property,Christmas Lights,40179,Miscellaneous Expenses,5034,"Leisure Centre Car Park
No repairs required 
Cost to install and dismantle all associated items
4725+VAT",21/12/2022,0174280,"3,543.75",Revenue,City Illuminations Ltd,77388,,
Chorley Borough Council,http://statistics.data.gov.uk/id/local-authority/30UE,Economic Development,1096,GROW - Commercial & Property,Christmas Lights,40179,Miscellaneous Expenses,5034,"Portland Street/Mcdonalds Car Park Repair costs 1 Reindeer has a number of strings / lamps failed, cost to repair  ",21/12/2022,0174281,"6,432.00",Revenue,City Illuminations Ltd,77388,,
Chorley Borough Council,http://statistics.data.gov.uk/id/local-authority/30UE,Economic Development,1096,GROW - Commercial & Property,Christmas Lights,40179,Miscellaneous Expenses,5034,"Nr Cinema Area - Calico/East Market Large cone tree has suffered on site damage, cost to repair ",21/12/2022,0174281,"3,809.25",Revenue,City Illuminations Ltd,77388,,
Chorley Borough Council,http://statistics.data.gov.uk/id/local-authority/30UE,Central Support Services,1009,GOVN - Policy & Governance,IT Software - Annual Licences,40101,Communication and Computing,5028,"Interface Change: SRBC ICON Interface to GL (Day 1) Stamp GL entries by transaction date, rather than entry date",07/12/2022,0171203,"1,715.00",Revenue,Civica UK Limited,17463,,
Chorley Borough Council,http://statistics.data.gov.uk/id/local-authority/30UE,Central Support Services,1009,GOVN - Policy & Governance,IT Software - Annual Licences,40101,Communication and Computing,5028,Interface Change: SRBC ICON Interface to GL (Day 2) Rewrite SSIS package to split the file by fund and date,07/12/2022,0171203,"1,544.00",Revenue,Civica UK Limited,17463,,
Chorley Borough Council,http://statistics.data.gov.uk/id/local-authority/30UE,Central Support Services,1009,CUST - Customer & Digital,IT Software - Annual Licences,40101,Communication and Computing,5028,Annual subscription-3DSV2 2 yearstransactions up to 50k pa- year 2annual subscription- year 2,07/12/2022,0174445,"16,875.00",Revenue,Civica UK Limited,17463,,
Chorley Borough Council,http://statistics.data.gov.uk/id/local-authority/30UE,Central Support Services,1009,GROW - Commercial & Property,General Repairs - Reactive,20004,Repairs Maintenance & Alts,5005,Town Hall  - Lifts Reactive Repairs,14/12/2022,0174225,677.96,Revenue,Classic Lifts Limited,20897,,
Chorley Borough Council,http://statistics.data.gov.uk/id/local-authority/30UE,Capital,Capital,GOVN - Policy & Governance,Other Legal Fees,03020,Capital Expenditure,Capital,Purchase monies for easement and transfer oveer land north of Euxton lane,07/12/2022,0174494,"31,500.00",Capital,Clients C/O Harrison Drury Solicitors,85124,,
Chorley Borough Council,http://statistics.data.gov.uk/id/local-authority/30UE,Central Support Services,1009,GROW - Commercial & Property,Agency Staff,13000,Direct Employee Expenses,5001,Building surveyor fees for NAME REDACTED - Sept- Dec 2022,21/12/2022,0174841,"2,292.50",Revenue,Community Resourcing Ltd,87056,,
Chorley Borough Council,http://statistics.data.gov.uk/id/local-authority/30UE,Central Support Services,1009,GROW - Commercial & Property,Agency Staff,13000,Direct Employee Expenses,5001,Building surveyor fees for NAME REDACTED - Sept- Dec 2022,21/12/2022,0174879,"1,085.00",Revenue,Community Resourcing Ltd,87056,,
Chorley Borough Council,http://statistics.data.gov.uk/id/local-authority/30UE,Central Support Services,1009,GROW - Commercial & Property,Agency Staff,13000,Direct Employee Expenses,5001,Building surveyor fees for NAME REDACTED - Sept- Dec 2022,21/12/2022,0174913,"1,295.00",Revenue,Community Resourcing Ltd,87056,,
Chorley Borough Council,http://statistics.data.gov.uk/id/local-authority/30UE,Central Support Services,1009,GROW - Commercial & Property,Agency Staff,13000,Direct Employee Expenses,5001,Building surveyor fees for NAME REDACTED - Sept- Dec 2022,21/12/2022,0174914,"1,312.50",Revenue,Community Resourcing Ltd,87056,,
Chorley Borough Council,http://statistics.data.gov.uk/id/local-authority/30UE,Central Support Services,1009,GROW - Commercial & Property,Agency Staff,13000,Direct Employee Expenses,5001,Building surveyor fees for NAME REDACTED - Sept- Dec 2022,21/12/2022,0174915,980.00,Revenue,Community Resourcing Ltd,87056,,
Chorley Borough Council,http://statistics.data.gov.uk/id/local-authority/30UE,Central Support Services,1009,GROW - Commercial & Property,Agency Staff,13000,Direct Employee Expenses,5001,Building surveyor fees for NAME REDACTED - Sept- Dec 2022,21/12/2022,0174916,787.50,Revenue,Community Resourcing Ltd,87056,,
Chorley Borough Council,http://statistics.data.gov.uk/id/local-authority/30UE,Central Support Services,1009,GROW - Commercial & Property,Agency Staff,13000,Direct Employee Expenses,5001,Building surveyor fees for NAME REDACTED - Sept- Dec 2022,21/12/2022,0174917,"1,304.00",Revenue,Community Resourcing Ltd,87056,,
Chorley Borough Council,http://statistics.data.gov.uk/id/local-authority/30UE,Central Support Services,1009,GROW - Commercial & Property,Agency Staff,13000,Direct Employee Expenses,5001,Building surveyor fees for NAME REDACTED - Sept- Dec 2022,21/12/2022,0174918,"1,326.00",Revenue,Community Resourcing Ltd,87056,,
Chorley Borough Council,http://statistics.data.gov.uk/id/local-authority/30UE,Central Support Services,1009,GROW - Commercial & Property,Agency Staff,13000,Direct Employee Expenses,5001,Building surveyor fees for NAME REDACTED - Sept- Dec 2022,21/12/2022,0174919,"1,309.85",Revenue,Community Resourcing Ltd,87056,,
Chorley Borough Council,http://statistics.data.gov.uk/id/local-authority/30UE,Central Support Services,1009,GROW - Commercial & Property,Agency Staff,13000,Direct Employee Expenses,5001,Building surveyor fees for NAME REDACTED - Sept- Dec 2022,21/12/2022,0174920,"1,306.70",Revenue,Community Resourcing Ltd,87056,,
Chorley Borough Council,http://statistics.data.gov.uk/id/local-authority/30UE,Central Support Services,1009,GROW - Commercial & Property,Agency Staff,13000,Direct Employee Expenses,5001,Building surveyor fees for NAME REDACTED - Sept- Dec 2022,21/12/2022,0174921,"1,050.00",Revenue,Community Resourcing Ltd,87056,,
Chorley Borough Council,http://statistics.data.gov.uk/id/local-authority/30UE,Central Support Services,1009,CUST - Customer & Digital,CCTV Camera Maintenance,40007,"Equipment, Furniture & Materia",5023,duct coil for astley,14/12/2022,0169087,416.18,Revenue,Core Integrated Solutions,77043,,
Chorley Borough Council,http://statistics.data.gov.uk/id/local-authority/30UE,Central Support Services,1009,CUST - Customer & Digital,Consultants` Fees,40077,Services,5027,Single 50mm twin wall duct installed in tarmac path @ 350mm depth Stat Plans for single site (max,14/12/2022,0170706,"1,975.00",Revenue,Core Integrated Solutions,77043,,
Chorley Borough Council,http://statistics.data.gov.uk/id/local-authority/30UE,Central Support Services,1009,CUST - Customer & Digital,Computer Equipment-Purchase,40098,Communication and Computing,5028,"Astley Park Fibre, CCTV Camera, Electrical and Wi-Fi Install",14/12/2022,0173239,"4,800.00",Revenue,Core Integrated Solutions,77043,,
Chorley Borough Council,http://statistics.data.gov.uk/id/local-authority/30UE,Central Support Services,1009,CUST - Customer & Digital,Computer Equipment-Purchase,40098,Communication and Computing,5028,Dig-down in the 2 locations highlighted during rodding and roping works. Clear and repair duct issues.  ,14/12/2022,0173461,"2,007.69",Revenue,Core Integrated Solutions,77043,,
Chorley Borough Council,http://statistics.data.gov.uk/id/local-authority/30UE,Recreation & Sport,1037,GOVN - Policy & Governance,Gas,20014,Energy Costs,5006,Clayton Brook Village Hall,14/12/2022,0173791,371.58,Revenue,Corona Energy Retail 2 Ltd,67249,,
Chorley Borough Council,http://statistics.data.gov.uk/id/local-authority/30UE,Central Support Services,1009,GOVN - Policy & Governance,Gas,20014,Energy Costs,5006,Civic Offices,14/12/2022,0173792,"1,875.77",Revenue,Corona Energy Retail 2 Ltd,67249,,
Chorley Borough Council,http://statistics.data.gov.uk/id/local-authority/30UE,Open Spaces,1038,GOVN - Policy & Governance,Gas,20014,Energy Costs,5006,Astley Coach house,14/12/2022,0173793,445.98,Revenue,Corona Energy Retail 2 Ltd,67249,,
Chorley Borough Council,http://statistics.data.gov.uk/id/local-authority/30UE,Recreation & Sport,1037,GOVN - Policy & Governance,Gas,20014,Energy Costs,5006,Astley Hall,14/12/2022,0173795,271.50,Revenue,Corona Energy Retail 2 Ltd,67249,,
Chorley Borough Council,http://statistics.data.gov.uk/id/local-authority/30UE,Recreation & Sport,1037,GOVN - Policy & Governance,Gas,20014,Energy Costs,5006,Astley village community centre,14/12/2022,0173798,517.15,Revenue,Corona Energy Retail 2 Ltd,67249,,
Chorley Borough Council,http://statistics.data.gov.uk/id/local-authority/30UE,Homelessness,1075,GOVN - Policy & Governance,Gas,20014,Energy Costs,5006,Cotswold House,14/12/2022,0173800,"1,790.09",Revenue,Corona Energy Retail 2 Ltd,67249,,
Chorley Borough Council,http://statistics.data.gov.uk/id/local-authority/30UE,Central Support Services,1009,GOVN - Policy & Governance,Gas,20014,Energy Costs,5006,West way,14/12/2022,0173802,350.31,Revenue,Corona Energy Retail 2 Ltd,67249,,
Chorley Borough Council,http://statistics.data.gov.uk/id/local-authority/30UE,Central Support Services,1009,GOVN - Policy & Governance,Gas,20014,Energy Costs,5006,town Hall,14/12/2022,0173805,389.64,Revenue,Corona Energy Retail 2 Ltd,67249,,
Chorley Borough Council,http://statistics.data.gov.uk/id/local-authority/30UE,Central Support Services,1009,EARL - Communities,Bailiffs' Fees,40071,Services,5027,3x GRT Evictions,21/12/2022,0170784,"2,150.00",Revenue,COURT ENFORCEMENT SPECIALISTS LTD,77924,,
Chorley Borough Council,http://statistics.data.gov.uk/id/local-authority/30UE,Central Support Services,1009,CUST - Customer & Digital,Items For Resale,40027,"Equipment, Furniture & Materia",5023,140L wheeled bin with Chorley logo.,02/12/2022,0174206,"2,827.50",Revenue,Craemer UK Ltd,64712,,
Chorley Borough Council,http://statistics.data.gov.uk/id/local-authority/30UE,Service Management & Support,1009,CUST - Customer & Digital,Supplies-Grounds Maintenance,40025,"Equipment, Furniture & Materia",5023,"Supply 1 x 1.8m Teak Bench and deliver to Bengal St depot, Bengal St, Chorley",21/12/2022,0174595,375.00,Revenue,Cyan t/a Lindsey,61782,,
Chorley Borough Council,http://statistics.data.gov.uk/id/local-authority/30UE,Capital,Capital,EARL - Communities,Grants,03002,Capital Expenditure,Capital,4 briary court,21/12/2022,0174765,"4,455.00",Capital,D J Bathing,78482,,
Chorley Borough Council,http://statistics.data.gov.uk/id/local-authority/30UE,Central Support Services,1009,CUST - Customer & Digital,Agency Staff,13000,Direct Employee Expenses,5001,Invoices for temp wages,14/12/2022,0173740,529.20,Revenue,Daniel Adams Recruitment,78104,,
Chorley Borough Council,http://statistics.data.gov.uk/id/local-authority/30UE,Central Support Services,1009,CUST - Customer & Digital,Agency Staff,13000,Direct Employee Expenses,5001,Invoices for temp wages,14/12/2022,0173858,529.20,Revenue,Daniel Adams Recruitment,78104,,
Chorley Borough Council,http://statistics.data.gov.uk/id/local-authority/30UE,Central Support Services,1009,CUST - Customer & Digital,Agency Staff,13000,Direct Employee Expenses,5001,Invoices for temp wages,14/12/2022,0174517,324.00,Revenue,Daniel Adams Recruitment,78104,,
Chorley Borough Council,http://statistics.data.gov.uk/id/local-authority/30UE,Business Support,1095,GROW - Commercial & Property,Cleaning/Attendants' Services,20041,Cleaning and Domestic Supplies,5012,"Per your week 34 invoice 654853, cleaning cover for week ending 20.11.22, 20 hours",14/12/2022,0174524,276.00,Revenue,Daniel Adams Recruitment,78104,,
Chorley Borough Council,http://statistics.data.gov.uk/id/local-authority/30UE,Central Support Services,1009,CUST - Customer & Digital,Computer Equipment-Purchase,40098,Communication and Computing,5028,"APC Smart-UPS On-Line, 20kVA/20kW, Rack/Tower, 230V/380V...415V, Hard wire 5-wire(3P+N+E)+3-wire(1P+N+E), ",02/12/2022,0172764,"28,317.51",Revenue,Data Centre UK,85504,,
Chorley Borough Council,http://statistics.data.gov.uk/id/local-authority/30UE,Central Support Services,1009,CUST - Customer & Digital,Computer Equipment-Purchase,40098,Communication and Computing,5028,"APC Smart-UPS On-Line, 20kVA/20kW, Rack/Tower, 230V/380V...415V, Hard wire 5-wire(3P+N+E)+3-wire(1P+N+E), ",02/12/2022,0173099,"2,606.31",Revenue,Data Centre UK,85504,,
Chorley Borough Council,http://statistics.data.gov.uk/id/local-authority/30UE,Central Support Services,1009,CUST - Customer & Digital,Computer Equipment-Purchase,40098,Communication and Computing,5028,"APC Smart-UPS On-Line, 20kVA/20kW, Rack/Tower, 230V/380V...415V, Hard wire 5-wire(3P+N+E)+3-wire(1P+N+E), ",02/12/2022,0173100,"3,239.66",Revenue,Data Centre UK,85504,,
Chorley Borough Council,http://statistics.data.gov.uk/id/local-authority/30UE,Central Support Services,1009,GOVN - Policy & Governance,Exhibitions & Special Events,40158,Miscellaneous Expenses,5034,Final Balance for stand A29 at BTTS 2023 Invoice No: 133477,14/12/2022,0174568,"1,600.00",Revenue,Diversified Business Communications UK,68712,,
Chorley Borough Council,http://statistics.data.gov.uk/id/local-authority/30UE,Planning Policy,1092,PLAN - Planning & Development,Consultants` Fees,40077,Services,5027,Central Lancashire Housing Needs Study,14/12/2022,0174590,"15,175.00",Revenue,DLP (Consulting Group) Ltd,84490,,
Chorley Borough Council,http://statistics.data.gov.uk/id/local-authority/30UE,Capital,Capital,PLAN - Planning & Development,Main Contractor,03007,Capital Expenditure,Capital,Pitch maintenance works to Jubilee Recreation Ground Adlington,02/12/2022,0174131,500.00,Capital,Duncan Ross Ltd,76803,,
Chorley Borough Council,http://statistics.data.gov.uk/id/local-authority/30UE,Culture & Heritage,1036,GOVN - Policy & Governance,Souvenirs,40033,"Equipment, Furniture & Materia",5023,Books supplied to Astley Hall gift shop by Ebb & Flo.,21/12/2022,0170625,491.90,Revenue,Ebb and Flo Bookshop,67239,,
Chorley Borough Council,http://statistics.data.gov.uk/id/local-authority/30UE,Central Support Services,1009,GROW - Commercial & Property,General Repairs - Reactive,20004,Repairs Maintenance & Alts,5005,2066 Old EFT invoice Arcon Rd garage site,21/12/2022,0173378,"1,801.80",Revenue,EFT Construction,78195,,
Chorley Borough Council,http://statistics.data.gov.uk/id/local-authority/30UE,Central Support Services,1009,GROW - Commercial & Property,General Repairs - Reactive,20004,Repairs Maintenance & Alts,5005,Car Parks  - General Building Reactive Repairs,21/12/2022,0174558,600.00,Revenue,EFT Construction,78195,,
Chorley Borough Council,http://statistics.data.gov.uk/id/local-authority/30UE,Business Support,1095,GROW - Commercial & Property,General Repairs - Reactive,20004,Repairs Maintenance & Alts,5005,MW  Market Walk - General Building Reactive Repairs,21/12/2022,0174680,"3,300.00",Revenue,EFT Construction,78195,,
Chorley Borough Council,http://statistics.data.gov.uk/id/local-authority/30UE,Central Support Services,1009,GROW - Commercial & Property,General Repairs - Reactive,20004,Repairs Maintenance & Alts,5005,Car Parks  - General Building Reactive Repairs,21/12/2022,0174681,"1,814.14",Revenue,EFT Construction,78195,,
Chorley Borough Council,http://statistics.data.gov.uk/id/local-authority/30UE,Central Support Services,1009,GROW - Commercial & Property,General Repairs - Reactive,20004,Repairs Maintenance & Alts,5005,Town Hall  - General Building Reactive Repairs,21/12/2022,0174682,"2,295.24",Revenue,EFT Construction,78195,,
Chorley Borough Council,http://statistics.data.gov.uk/id/local-authority/30UE,Central Support Services,1009,GROW - Commercial & Property,Professional Fees,40063,Services,5027,Fees for consultancy support - Bengal Street Relocation Options Study,21/12/2022,0174761,"8,100.00",Revenue,Egniol Environmental Ltd,78236,,
Chorley Borough Council,http://statistics.data.gov.uk/id/local-authority/30UE,Central Support Services,1009,GOVN - Policy & Governance,Publicity - Advertising,40157,Miscellaneous Expenses,5034,Job Advert - Top Job Package,14/12/2022,0174603,800.00,Revenue,EMAP Publishing Limited,85456,,
Chorley Borough Council,http://statistics.data.gov.uk/id/local-authority/30UE,Business Support,1095,GROW - Commercial & Property,Internet Charges,40104,Communication and Computing,5028,"``Call Off`` order for: Operate Growth, April 2022 to March 2023 Connect Growth, Call charges and IP addresses ",14/12/2022,0174594,345.55,Revenue,Essensys Ltd,77836,,
Chorley Borough Council,http://statistics.data.gov.uk/id/local-authority/30UE,Central Support Services,1009,GOVN - Policy & Governance,Training Course Fees,17010,Indirect Employee Expenses,5002,Fall Arrest Training for 6 delegates.,14/12/2022,0174516,895.00,Revenue,Eurosafe Solutions Limited,66302,,
Chorley Borough Council,http://statistics.data.gov.uk/id/local-authority/30UE,Central Support Services,1009,EARL - Communities,Misc Expenses,40200,Miscellaneous Expenses,5034,Project fund,02/12/2022,0174065,"2,000.00",Revenue,Euxton Parish Council,16838,,
Chorley Borough Council,http://statistics.data.gov.uk/id/local-authority/30UE,Central Support Services,1009,CUST - Customer & Digital,Unitary Payment(S),50009,Private Contractors,5042,Provision of Waste and Recycling Services to Chorley Council 2022/23,21/12/2022,0174529,"203,203.38",Revenue,FCC Environment Services (UK) Limited,77903,,
Chorley Borough Council,http://statistics.data.gov.uk/id/local-authority/30UE,Central Support Services,1009,GOVN - Policy & Governance,Processional Routes,40177,Miscellaneous Expenses,5034,Fee for playing at Chorley`s Remembrance Sunday service in Astley Park on Sunday 13 November 2022.,02/12/2022,0174203,650.00,Revenue,Formby Band,77694,,
Chorley Borough Council,http://statistics.data.gov.uk/id/local-authority/30UE,Homelessness,1075,GROW - Commercial & Property,Furniture - Purchase,40012,"Equipment, Furniture & Materia",5023,Replacement furniture for flat 6 5 x Single mattresses 3 x Single bed bases ,07/12/2022,0174506,899.34,Revenue,Furniture Resource Centre Ltd,22085,,
Chorley Borough Council,http://statistics.data.gov.uk/id/local-authority/30UE,Service Management & Support,1009,CUST - Customer & Digital,Vehicles and Plant Maintenance,30045,Direct Transport Costs,5016,Invoice Number SI-5383,21/12/2022,0174782,277.00,Revenue,G & S Auto Electrical Services,16323,,
Chorley Borough Council,http://statistics.data.gov.uk/id/local-authority/30UE,Central Support Services,1009,GOVN - Policy & Governance,Refreshments,40036,Catering,5024, Country Range Luxury Mini Pack QTY 4 boxes Fairtrade Chocolate Sachets QTY 2 boxes Cafe Express Fairtrade Freeze  ,21/12/2022,0174073,262.21,Revenue,G C Birchall Ltd T/A Birchall Foodservice,69765,,
Chorley Borough Council,http://statistics.data.gov.uk/id/local-authority/30UE,Central Support Services,1009,GOVN - Policy & Governance,Refreshments,40036,Catering,5024,,21/12/2022,0174073,244.75,Revenue,G C Birchall Ltd T/A Birchall Foodservice,69765,,
Chorley Borough Council,http://statistics.data.gov.uk/id/local-authority/30UE,Corporate Management,1008,EARL - Communities,Agency Staff,13000,Direct Employee Expenses,5001,Agency placement of NAME REDACTED in the temporary Housing Solutions Manager (operations) role for 6 months,07/12/2022,0168834,"1,980.00",Revenue,G2 Recruitment Solutions,84173,,
Chorley Borough Council,http://statistics.data.gov.uk/id/local-authority/30UE,Capital,Capital,GROW - Commercial & Property,Main Contractor,03007,Capital Expenditure,Capital,"Astley Hall Renovation Project
Conservation specialist works",02/12/2022,0174234,"8,061.00",Capital,Geoff W Maybank,64389,,
Chorley Borough Council,http://statistics.data.gov.uk/id/local-authority/30UE,Tourism,1039,GOVN - Policy & Governance,Professional Fees,40063,Services,5027,Ice sculptures for Chorley Town Centre at Christmastime. 2 ice sculptures on Saturday 10 December and 2 ice sculptures ,21/12/2022,0174822,"2,767.50",Revenue,Glacial Art Ice Sculptors Ltd,87012,,
Chorley Borough Council,http://statistics.data.gov.uk/id/local-authority/30UE,Service Management & Support,1009,CUST - Customer & Digital,Supplies-Grounds Maintenance,40025,"Equipment, Furniture & Materia",5023,10x Johnston C101 Mix poly/wire brushes Johnston C101 wheels As agreed with NAME REDACTED,14/12/2022,0174155,539.73,Revenue,Go Plant Fleet Services Ltd,80857,,
Chorley Borough Council,http://statistics.data.gov.uk/id/local-authority/30UE,Service Management & Support,1009,CUST - Customer & Digital,Hire Of Vehicles and Plant,30028,Contrct Hire & Operating Lease,5018,Extension of the sweepers 12 month Contract - Start date 02/09/22,14/12/2022,0174530,"8,332.30",Revenue,Go Plant Fleet Services Ltd,80857,,
Chorley Borough Council,http://statistics.data.gov.uk/id/local-authority/30UE,Central Support Services,1009,CUST - Customer & Digital,Professional Fees,40063,Services,5027,Garden waste subscription payments 2022/23 for Chorley and South Ribble,07/12/2022,0174130,708.33,Revenue,GoCardless,77457,,
Chorley Borough Council,http://statistics.data.gov.uk/id/local-authority/30UE,Central Support Services,1009,CUST - Customer & Digital,Professional Fees,40063,Services,5027,Garden waste subscription payments 2022/23 for Chorley and South Ribble,07/12/2022,0174419,708.33,Revenue,GoCardless,77457,,
Chorley Borough Council,http://statistics.data.gov.uk/id/local-authority/30UE,Central Support Services,1009,GROW - Commercial & Property,Professional Fees,40063,Services,5027,Client Support Services - Tatton Gardens Project as per fee proposal - ref A.2-001.,02/12/2022,0174204,"3,400.00",Revenue,Gosling Consulting Limited,78380,,
Chorley Borough Council,http://statistics.data.gov.uk/id/local-authority/30UE,Central Support Services,1009,GROW - Commercial & Property,Professional Fees,40063,Services,5027,Client Support Services - Tatton Gardens Project as per fee proposal - ref A.2-001.,07/12/2022,0174449,"1,700.00",Revenue,Gosling Consulting Limited,78380,,
Chorley Borough Council,http://statistics.data.gov.uk/id/local-authority/30UE,Central Support Services,1009,PLAN - Planning & Development,Vandalism Repairs,20005,Repairs Maintenance & Alts,5005,Graffiti removal contract October 2022 ongoing,14/12/2022,0174671,450.00,Revenue,Graffiti Away Ltd,78340,,
Chorley Borough Council,http://statistics.data.gov.uk/id/local-authority/30UE,Capital,Capital,GROW - Commercial & Property,Other Capital Related Fees,03024,Capital Expenditure,Capital,1400-600RHD 1.4m Commercial stainless steel RHD Double Bowl sink  600 series � ,21/12/2022,0174207,499.00,Capital,Grafton Projects Limited,76545,,
Chorley Borough Council,http://statistics.data.gov.uk/id/local-authority/30UE,Business Support,1095,GROW - Commercial & Property,Cleaning/Attendants' Services,20041,Cleaning and Domestic Supplies,5012,Shark anti hair wrap model -  IX252UKT +2 batteries,14/12/2022,0174508,299.00,Revenue,Grafton Projects Limited,76545,,
Chorley Borough Council,http://statistics.data.gov.uk/id/local-authority/30UE,Corporate Management,1008,GOVN - Policy & Governance,External Audit,40064,Services,5027,2022/23 Audit Fees,21/12/2022,0174844,"10,740.83",Revenue,Grant Thornton UK LLP,57322,,
Chorley Borough Council,http://statistics.data.gov.uk/id/local-authority/30UE,Corporate Management,1008,GROW - Commercial & Property,Publicity - Advertising,40157,Miscellaneous Expenses,5034,Social media for Market Walk SHopping Centre Chorley.,14/12/2022,0174599,500.00,Revenue,Gravity,77837,,
Chorley Borough Council,http://statistics.data.gov.uk/id/local-authority/30UE,Tourism,1039,GOVN - Policy & Governance,Tools & Equipment - Hire,40004,"Equipment, Furniture & Materia",5023,"A supply of red diesel for the Ice Rink at Chorley`s Winter Wonderland on Cleveland Street car park, Chorley, PR7 1DN. ",14/12/2022,0174535,"1,173.34",Revenue,Harrison Oils Ltd,76429,,
Chorley Borough Council,http://statistics.data.gov.uk/id/local-authority/30UE,Central Support Services,1009,GROW - Commercial & Property,Agency Staff,13000,Direct Employee Expenses,5001,NAME REDACTED - Estates Surveyor Chorley Council,14/12/2022,0174291,"1,785.00",Revenue,Hays Senior Finance,20078,,
Chorley Borough Council,http://statistics.data.gov.uk/id/local-authority/30UE,Central Support Services,1009,GROW - Commercial & Property,Agency Staff,13000,Direct Employee Expenses,5001,Estate Surveyor Fees -  NAME REDACTED,21/12/2022,0174896,"1,785.00",Revenue,Hays Senior Finance,20078,,
Chorley Borough Council,http://statistics.data.gov.uk/id/local-authority/30UE,Central Support Services,1009,GROW - Commercial & Property,Agency Staff,13000,Direct Employee Expenses,5001,Estate Surveyor Fees -  NAME REDACTED,21/12/2022,0174897,"1,785.00",Revenue,Hays Senior Finance,20078,,
Chorley Borough Council,http://statistics.data.gov.uk/id/local-authority/30UE,Central Support Services,1009,GROW - Commercial & Property,Agency Staff,13000,Direct Employee Expenses,5001,Estate Surveyor Fees -  NAME REDACTED,21/12/2022,0174898,"1,785.00",Revenue,Hays Senior Finance,20078,,
Chorley Borough Council,http://statistics.data.gov.uk/id/local-authority/30UE,Central Support Services,1009,GROW - Commercial & Property,Agency Staff,13000,Direct Employee Expenses,5001,Estate Surveyor Fees -  NAME REDACTED,21/12/2022,0174899,"1,632.00",Revenue,Hays Senior Finance,20078,,
Chorley Borough Council,http://statistics.data.gov.uk/id/local-authority/30UE,Capital,Capital,GOVN - Policy & Governance,Other Capital Grants/Loans,03000,Capital Expenditure,Capital,Contribution of Bank Hall Restoration Project Final Claim,21/12/2022,0174837,"85,125.00",Capital,Heritage Trust for the North West,77042,,
Chorley Borough Council,http://statistics.data.gov.uk/id/local-authority/30UE,Central Support Services,1009,CUST - Customer & Digital,Computer Software-Purchase,40100,Communication and Computing,5028,Access control hardware Door installation and configuration (including PM) Time recording hardware Professional Services,21/12/2022,0174077,"5,412.00",Revenue,Hfx Ltd,17164,,
Chorley Borough Council,http://statistics.data.gov.uk/id/local-authority/30UE,Capital,Capital,GOVN - Policy & Governance,Other Capital Related Fees,03024,Capital Expenditure,Capital,ADDRESS REDACTED SDLT,14/12/2022,0174581,"5,249.00",Capital,HM Revenue & Customs,56499,,
Chorley Borough Council,http://statistics.data.gov.uk/id/local-authority/30UE,Corporate Management,1008,EARL - Communities,Grants to Chorley T.C.Initiative,40128,Grants and Subscriptions,5031,Delivery of Household Support Fund Phase 3,02/12/2022,0174292,"17,500.00",Revenue,Home-Start Central Lancashire Ltd,20585,,
Chorley Borough Council,http://statistics.data.gov.uk/id/local-authority/30UE,Central Support Services,1009,CUST - Customer & Digital,Telephones - Maintenance,40233,Communication and Computing,5028,1 Anywhere365 Corporate SA - Monthly  Anywhere365 Extension Window SA Enterprise feature pack for Chorley SA,07/12/2022,0172751,557.70,Revenue,Hybrit LLP,77925,,
Chorley Borough Council,http://statistics.data.gov.uk/id/local-authority/30UE,Central Support Services,1009,CUST - Customer & Digital,Telephones - Maintenance,40233,Communication and Computing,5028,1 Anywhere365 Corporate SA - Monthly  Anywhere365 Extension Window SA Enterprise feature pack for Chorley SA,07/12/2022,0173550,557.70,Revenue,Hybrit LLP,77925,,
Chorley Borough Council,http://statistics.data.gov.uk/id/local-authority/30UE,Central Support Services,1009,CUST - Customer & Digital,Telephones - Other,40085,Communication and Computing,5028,1 Anywhere365 Corporate SA - Monthly  Anywhere365 Extension Window SA Enterprise feature pack for Chorley SA,21/12/2022,0174457,557.70,Revenue,Hybrit LLP,77925,,
Chorley Borough Council,http://statistics.data.gov.uk/id/local-authority/30UE,Central Support Services,1009,CUST - Customer & Digital,Telephones - Other,40085,Communication and Computing,5028,Hybrit SIP charges May 22,21/12/2022,0174458,747.50,Revenue,Hybrit LLP,77925,,
Chorley Borough Council,http://statistics.data.gov.uk/id/local-authority/30UE,Corporate Management,1008,GOVN - Policy & Governance,Other Fees,40212,Miscellaneous Expenses,5034,Subsidy for the provision of a meals on wheels service in Chorley up to 6 November 2022,21/12/2022,0174161,"1,837.50",Revenue,I Care GB Ltd,77247,,
Chorley Borough Council,http://statistics.data.gov.uk/id/local-authority/30UE,Tourism,1039,GOVN - Policy & Governance,Publicity - Advertising,40157,Miscellaneous Expenses,5034,Advertising in Gardener`s World - North West Region for Chorley Flower Show,21/12/2022,0174239,"1,200.00",Revenue,Immediate Media London Ltd,70473,,
Chorley Borough Council,http://statistics.data.gov.uk/id/local-authority/30UE,Control Accounts,Control,System,Manual Control Account,00001,Balance Sheet,Balance,,07/12/2022,0173854,"3,224.77",Revenue,Inland Revenue 065py00102078,17445,,
Chorley Borough Council,http://statistics.data.gov.uk/id/local-authority/30UE,Control Accounts,Control,System,Manual Control Account,00001,Balance Sheet,Balance,,07/12/2022,0174443,624.19,Revenue,Inland Revenue 065py00102078,17445,,
Chorley Borough Council,http://statistics.data.gov.uk/id/local-authority/30UE,Community Development,1097,GROW - Commercial & Property,Rent/Hire Of Premises,20017,Premises Rents,5007,35-37 Market Street Annual insurance premium for the year commencing 10 November 2022,07/12/2022,0174089,970.73,Revenue,J R Keys,17124,,
Chorley Borough Council,http://statistics.data.gov.uk/id/local-authority/30UE,Community Development,1097,GROW - Commercial & Property,Rent/Hire Of Premises,20017,Premises Rents,5007,35/37 Market St 12 months rent ,21/12/2022,0174878,"7,218.75",Revenue,J R Keys,17124,,
Chorley Borough Council,http://statistics.data.gov.uk/id/local-authority/30UE,Tourism,1039,GOVN - Policy & Governance,Professional Fees,40063,Services,5027,appearance fee,07/12/2022,0174467,"2,000.00",Revenue,Jack Catterall,86990,,
Chorley Borough Council,http://statistics.data.gov.uk/id/local-authority/30UE,Business Support,1095,GROW - Commercial & Property,Tools & Equipment - Purchase,40003,"Equipment, Furniture & Materia",5023,For the maintenance and services provided at Primrose gardens,02/12/2022,0174265,333.09,Revenue,JLA Total Care LTD,78420,,
Chorley Borough Council,http://statistics.data.gov.uk/id/local-authority/30UE,Capital,Capital,PLAN - Planning & Development,Architects Fees,03022,Capital Expenditure,Capital,Garden of Reflection maintenance and enhancement,07/12/2022,0174252,"1,000.00",Capital,John Everiss Design Ltd,69632,,
Chorley Borough Council,http://statistics.data.gov.uk/id/local-authority/30UE,Corporate Management,1008,GROW - Commercial & Property,Professional Fees,14011,Direct Employee Expenses,5001,Architectural / Master Planning Consultancy Services - CBC Levelling Up Fund,14/12/2022,0174484,"2,250.00",Revenue,John Thompson & Partners LLP t/a JTP,85407,,
Chorley Borough Council,http://statistics.data.gov.uk/id/local-authority/30UE,Corporate Management,1008,GROW - Commercial & Property,Professional Fees,14011,Direct Employee Expenses,5001,Architectural / Master Planning Consultancy Services - CBC Levelling Up Fund,14/12/2022,0174501,"2,341.70",Revenue,John Thompson & Partners LLP t/a JTP,85407,,
Chorley Borough Council,http://statistics.data.gov.uk/id/local-authority/30UE,Corporate Management,1008,GROW - Commercial & Property,Professional Fees,14011,Direct Employee Expenses,5001,Architectural / Master Planning Consultancy Services - CBC Levelling Up Fund,14/12/2022,0174502,"8,332.83",Revenue,John Thompson & Partners LLP t/a JTP,85407,,
Chorley Borough Council,http://statistics.data.gov.uk/id/local-authority/30UE,Corporate Management,1008,GROW - Commercial & Property,Professional Fees,14011,Direct Employee Expenses,5001,Architectural / Master Planning Consultancy Services - CBC Levelling Up Fund,14/12/2022,0174503,"10,000.00",Revenue,John Thompson & Partners LLP t/a JTP,85407,,
Chorley Borough Council,http://statistics.data.gov.uk/id/local-authority/30UE,Capital,Capital,EARL - Communities,Grants,03002,Capital Expenditure,Capital,6 plock green,21/12/2022,0174780,"7,435.00",Capital,K Berry Ltd,16421,,
Chorley Borough Council,http://statistics.data.gov.uk/id/local-authority/30UE,Service Management & Support,1009,CUST - Customer & Digital,Supplies-Grounds Maintenance,40025,"Equipment, Furniture & Materia",5023,Quantity x 1 Product 200-000680 5 Kilos TALON Wax Blocks0051192 ,21/12/2022,0174823,606.96,Revenue,Killgerm Chemicals Ltd,16879,,
Chorley Borough Council,http://statistics.data.gov.uk/id/local-authority/30UE,Tourism,1039,GOVN - Policy & Governance,Professional Fees,40063,Services,5027,15 minute low noise musical display,02/12/2022,0174405,"12,000.00",Revenue,Komodo Fireworks Ltd,72809,,
Chorley Borough Council,http://statistics.data.gov.uk/id/local-authority/30UE,Corporate Management,1008,GOVN - Policy & Governance,Other Contributions,40145,Grants and Subscriptions,5031,Shared bus services covering the period from April 2022 to March 2023,02/12/2022,0174209,"18,380.72",Revenue,Lancashire County Council,17758,,
Chorley Borough Council,http://statistics.data.gov.uk/id/local-authority/30UE,Planning Policy,1092,PLAN - Planning & Development,Misc Expenses,40200,Miscellaneous Expenses,5034,"Buffet Lunch, Teas, Coffees and Orange Juice supplied for the Central Lancashire Developers Forum on 26th September 2022",02/12/2022,0174242,508.50,Revenue,Lancashire County Council,17758,,
Chorley Borough Council,http://statistics.data.gov.uk/id/local-authority/30UE,Central Support Services,1009,GROW - Commercial & Property,General Repairs - Reactive,20004,Repairs Maintenance & Alts,5005,Bengal St   - Gas / Air Con / Plumbing  Reactive Repairs,14/12/2022,0173686,"1,268.76",Revenue,Lancashire Gas Services Ltd,78192,,
Chorley Borough Council,http://statistics.data.gov.uk/id/local-authority/30UE,Business Support,1095,GROW - Commercial & Property,General Repairs - Reactive,20004,Repairs Maintenance & Alts,5005,MW    Market Walk   - Gas / Air Con / Plumbing  Reactive Repairs,14/12/2022,0173961,707.72,Revenue,Lancashire Gas Services Ltd,78192,,
Chorley Borough Council,http://statistics.data.gov.uk/id/local-authority/30UE,Central Support Services,1009,GROW - Commercial & Property,General Repairs - Reactive,20004,Repairs Maintenance & Alts,5005,Union St   - Gas / Air Con / Plumbing  Reactive Repairs,14/12/2022,0174115,372.25,Revenue,Lancashire Gas Services Ltd,78192,,
Chorley Borough Council,http://statistics.data.gov.uk/id/local-authority/30UE,Business Support,1095,GROW - Commercial & Property,General Repairs - Reactive,20004,Repairs Maintenance & Alts,5005,Strawberry Fields  - Gas / Air Con / Plumbing  Reactive Repairs,14/12/2022,0174117,638.43,Revenue,Lancashire Gas Services Ltd,78192,,
Chorley Borough Council,http://statistics.data.gov.uk/id/local-authority/30UE,Central Support Services,1009,GROW - Commercial & Property,General Repairs - Reactive,20004,Repairs Maintenance & Alts,5005,Primrose   - Gas / Air Con / Plumbing  Reactive Repairs,14/12/2022,0174118,786.37,Revenue,Lancashire Gas Services Ltd,78192,,
Chorley Borough Council,http://statistics.data.gov.uk/id/local-authority/30UE,Central Support Services,1009,GROW - Commercial & Property,General Repairs - Reactive,20004,Repairs Maintenance & Alts,5005,Astley hall and Buildings   - Gas / Air Con / Plumbing  Reactive Repairs,14/12/2022,0174294,"1,532.34",Revenue,Lancashire Gas Services Ltd,78192,,
Chorley Borough Council,http://statistics.data.gov.uk/id/local-authority/30UE,Central Support Services,1009,GROW - Commercial & Property,General Repairs - Reactive,20004,Repairs Maintenance & Alts,5005,Town Hall   - Gas / Air Con / Plumbing  Reactive Repairs,14/12/2022,0174604,258.95,Revenue,Lancashire Gas Services Ltd,78192,,
Chorley Borough Council,http://statistics.data.gov.uk/id/local-authority/30UE,Central Support Services,1009,GROW - Commercial & Property,General Repairs - Reactive,20004,Repairs Maintenance & Alts,5005,Sports pitches and pavilions   - Gas / Air Con / Plumbing  Reactive Repairs,14/12/2022,0174653,299.99,Revenue,Lancashire Gas Services Ltd,78192,,
Chorley Borough Council,http://statistics.data.gov.uk/id/local-authority/30UE,Central Support Services,1009,GROW - Commercial & Property,General Repairs - Reactive,20004,Repairs Maintenance & Alts,5005,Cotswold   - Gas / Air Con / Plumbing  Reactive Repairs,14/12/2022,0174657,606.40,Revenue,Lancashire Gas Services Ltd,78192,,
Chorley Borough Council,http://statistics.data.gov.uk/id/local-authority/30UE,Central Support Services,1009,GROW - Commercial & Property,Planned Maintenance,20006,Repairs Maintenance & Alts,5005,Town Hall  - Heating and Air Con Planned Maintenance and remedials,14/12/2022,0174664,710.51,Revenue,Lancashire Gas Services Ltd,78192,,
Chorley Borough Council,http://statistics.data.gov.uk/id/local-authority/30UE,Capital,Capital,GROW - Commercial & Property,Main Contractor,03007,Capital Expenditure,Capital,Town Hall Server roomQuotation: To supply and install 3 x 10KW wall mounted indoor units to the new main server room ,14/12/2022,0174752,"9,365.00",Capital,Lancashire Gas Services Ltd,78192,,
Chorley Borough Council,http://statistics.data.gov.uk/id/local-authority/30UE,Capital,Capital,GROW - Commercial & Property,Main Contractor,03007,Capital Expenditure,Capital,Labour,14/12/2022,0174752,"9,060.00",Capital,Lancashire Gas Services Ltd,78192,,
Chorley Borough Council,http://statistics.data.gov.uk/id/local-authority/30UE,Planning Policy,1092,PLAN - Planning & Development,Consultants` Fees,40077,Services,5027,"Assistance in progressing work on the Central Lancashire Local Plan Land Use Study, and Development of Policies ",14/12/2022,0174598,"11,400.75",Revenue,Land Use Consultants (LUC) Ltd,81849,,
Chorley Borough Council,http://statistics.data.gov.uk/id/local-authority/30UE,Central Support Services,1009,CUST - Customer & Digital,Professional Fees,40063,Services,5027,LARAC membership fees 2022/2023,21/12/2022,0174830,445.00,Revenue,Larac,16550,,
Chorley Borough Council,http://statistics.data.gov.uk/id/local-authority/30UE,Capital,Capital,GROW - Commercial & Property,Main Contractor,03007,Capital Expenditure,Capital,Project management for Astley Restoration Project,02/12/2022,0174034,"1,750.00",Capital,Linchpin Ltd,80779,,
Chorley Borough Council,http://statistics.data.gov.uk/id/local-authority/30UE,Central Support Services,1009,GOVN - Policy & Governance,HR Approved Occ Health Fees,15201,Indirect Employee Expenses,5002,Counselling sessions for staff in October 2022 - Invoice CC1022,21/12/2022,0174418,500.00,Revenue,Livewell Counselling Service,63084,,
Chorley Borough Council,http://statistics.data.gov.uk/id/local-authority/30UE,Corporate Management,1008,EARL - Communities,Grants to Chorley T.C.Initiative,40128,Grants and Subscriptions,5031,Delivery of Household Support Fund Phase 3,21/12/2022,0174874,"15,500.00",Revenue,Living Waters Storehouse,60925,,
Chorley Borough Council,http://statistics.data.gov.uk/id/local-authority/30UE,Business Support,1095,GROW - Commercial & Property,Stationery,40050,"Printing, Stationery & General",5026,Please supply the following items; 11081036 Brother TN247BK LAS CART BLK 1 56.90,14/12/2022,0174575,56.90,Revenue,Lyreco UK Ltd,17623,,
Chorley Borough Council,http://statistics.data.gov.uk/id/local-authority/30UE,Business Support,1095,GROW - Commercial & Property,Stationery,40050,"Printing, Stationery & General",5026,11081047 Brother TN247C LAS CART CY 1,14/12/2022,0174575,65.91,Revenue,Lyreco UK Ltd,17623,,
Chorley Borough Council,http://statistics.data.gov.uk/id/local-authority/30UE,Business Support,1095,GROW - Commercial & Property,Stationery,40050,"Printing, Stationery & General",5026,11081058 Brother TN247M LAS CART MAG 1 ,14/12/2022,0174575,65.91,Revenue,Lyreco UK Ltd,17623,,
Chorley Borough Council,http://statistics.data.gov.uk/id/local-authority/30UE,Business Support,1095,GROW - Commercial & Property,Stationery,40050,"Printing, Stationery & General",5026,11081069 Brother TN247Y LAS CART YLLW 1,14/12/2022,0174575,65.91,Revenue,Lyreco UK Ltd,17623,,
Chorley Borough Council,http://statistics.data.gov.uk/id/local-authority/30UE,Business Support,1095,GROW - Commercial & Property,Stationery,40050,"Printing, Stationery & General",5026,1 X 11060238 pK6 Lyreco clear tape 25mm x66 mm,14/12/2022,0174575,1.55,Revenue,Lyreco UK Ltd,17623,,
Chorley Borough Council,http://statistics.data.gov.uk/id/local-authority/30UE,Business Support,1095,GROW - Commercial & Property,Stationery,40050,"Printing, Stationery & General",5026,1 pack of 20  - 706351 Lyreco Budget shorthand notebook,14/12/2022,0174575,4.80,Revenue,Lyreco UK Ltd,17623,,
Chorley Borough Council,http://statistics.data.gov.uk/id/local-authority/30UE,Business Support,1095,GROW - Commercial & Property,Stationery,40050,"Printing, Stationery & General",5026,x1 box 3110545 Lyreco hard back twin wire notebook A4,14/12/2022,0174575,6.65,Revenue,Lyreco UK Ltd,17623,,
Chorley Borough Council,http://statistics.data.gov.uk/id/local-authority/30UE,Tourism,1039,GOVN - Policy & Governance,Misc Expenses,40200,Miscellaneous Expenses,5034,Afternoon performance of Beauty & the Beast Date - 17 December 2022 Venue - Lancastrian Suite,21/12/2022,0174287,"1,199.00",Revenue,M&M Productions,84125,,
Chorley Borough Council,http://statistics.data.gov.uk/id/local-authority/30UE,Central Support Services,1009,GOVN - Policy & Governance,Ground Rents,20016,Premises Rents,5007,groud rent,14/12/2022,0174286,276.00,Revenue,Mainstay Residential Limited,77636,,
Chorley Borough Council,http://statistics.data.gov.uk/id/local-authority/30UE,Building Control,1090,PLAN - Planning & Development,Agency Staff,13000,Direct Employee Expenses,5001,Commenced 17.10.2022 agency fees for NAME REDACTED 37 hours p/w and NAME REDACTED 24 hours p/w ,02/12/2022,0174269,"2,100.00",Revenue,Matchtech,77343,,
Chorley Borough Council,http://statistics.data.gov.uk/id/local-authority/30UE,Building Control,1090,PLAN - Planning & Development,Agency Staff,13000,Direct Employee Expenses,5001,Commenced 17.10.2022 agency fees for NAME REDACTED 37 hours p/w and NAME REDACTED 24 hours p/w ,02/12/2022,0174284,"2,100.00",Revenue,Matchtech,77343,,
Chorley Borough Council,http://statistics.data.gov.uk/id/local-authority/30UE,Building Control,1090,PLAN - Planning & Development,Agency Staff,13000,Direct Employee Expenses,5001,Commenced 17.10.2022 agency fees for NAME REDACTED 37 hours p/w and NAME REDACTED 24 hours p/w ,02/12/2022,0174285,"1,344.00",Revenue,Matchtech,77343,,
Chorley Borough Council,http://statistics.data.gov.uk/id/local-authority/30UE,Building Control,1090,PLAN - Planning & Development,Agency Staff,13000,Direct Employee Expenses,5001,Commenced 17.10.2022 agency fees for NAME REDACTED 37 hours p/w and NAME REDACTED 24 hours p/w ,14/12/2022,0174477,"1,344.00",Revenue,Matchtech,77343,,
Chorley Borough Council,http://statistics.data.gov.uk/id/local-authority/30UE,Building Control,1090,PLAN - Planning & Development,Agency Staff,13000,Direct Employee Expenses,5001,Commenced 17.10.2022 agency fees for NAME REDACTED 37 hours p/w and NAME REDACTED 24 hours p/w ,21/12/2022,0174551,"1,344.00",Revenue,Matchtech,77343,,
Chorley Borough Council,http://statistics.data.gov.uk/id/local-authority/30UE,Building Control,1090,PLAN - Planning & Development,Agency Staff,13000,Direct Employee Expenses,5001,Commenced 17.10.2022 agency fees for NAME REDACTED 37 hours p/w and NAME REDACTED 24 hours p/w ,21/12/2022,0174673,"2,100.00",Revenue,Matchtech,77343,,
Chorley Borough Council,http://statistics.data.gov.uk/id/local-authority/30UE,Building Control,1090,PLAN - Planning & Development,Agency Staff,13000,Direct Employee Expenses,5001,Commenced 17.10.2022 agency fees for NAME REDACTED 37 hours p/w and NAME REDACTED 24 hours p/w ,21/12/2022,0174726,"1,344.00",Revenue,Matchtech,77343,,
Chorley Borough Council,http://statistics.data.gov.uk/id/local-authority/30UE,Building Control,1090,PLAN - Planning & Development,Agency Staff,13000,Direct Employee Expenses,5001,Commenced 17.10.2022 agency fees for NAME REDACTED 37 hours p/w and NAME REDACTED 24 hours p/w ,21/12/2022,0174727,"2,100.00",Revenue,Matchtech,77343,,
Chorley Borough Council,http://statistics.data.gov.uk/id/local-authority/30UE,Central Support Services,1009,GOVN - Policy & Governance,IT Software - Annual Licences,40101,Communication and Computing,5028,Chorley Council and South Ribble Borough Council MHR and HFX integrations as discussed on call date 25 April 2022.,21/12/2022,0174476,"2,160.00",Revenue,MHR International UK Ltd,84982,,
Chorley Borough Council,http://statistics.data.gov.uk/id/local-authority/30UE,Homelessness,1075,EARL - Communities,Misc Expenses,40200,Miscellaneous Expenses,5034,Conversation Cafe Catering 10 meat hot pot of the day 5 Vegan dish of the day Plus pickles/salad/bread,02/12/2022,0174193,"1,080.00",Revenue,Mike Bryan,77185,,
Chorley Borough Council,http://statistics.data.gov.uk/id/local-authority/30UE,Capital,Capital,EARL - Communities,Grants,03002,Capital Expenditure,Capital,ADDRESS REDACTED ,21/12/2022,0174764,"5,297.96",Capital,Mint Northwest Ltd,65607,,
Chorley Borough Council,http://statistics.data.gov.uk/id/local-authority/30UE,Capital,Capital,EARL - Communities,Grants,03002,Capital Expenditure,Capital,,02/12/2022,0174394,"5,400.00",Capital,Mobility Care Services,70841,,
Chorley Borough Council,http://statistics.data.gov.uk/id/local-authority/30UE,Private Sector HSG Renewal,1073,EARL - Communities,External Contractor,40198,Miscellaneous Expenses,5034,Ref 7103,07/12/2022,0174497,264.00,Revenue,Mobility Care Services,70841,,
Chorley Borough Council,http://statistics.data.gov.uk/id/local-authority/30UE,Private Sector HSG Renewal,1073,EARL - Communities,External Contractor,40198,Miscellaneous Expenses,5034,Ref7104,07/12/2022,0174497,480.00,Revenue,Mobility Care Services,70841,,
Chorley Borough Council,http://statistics.data.gov.uk/id/local-authority/30UE,Private Sector HSG Renewal,1073,EARL - Communities,External Contractor,40198,Miscellaneous Expenses,5034,Ref7105,07/12/2022,0174497,85.00,Revenue,Mobility Care Services,70841,,
Chorley Borough Council,http://statistics.data.gov.uk/id/local-authority/30UE,Private Sector HSG Renewal,1073,EARL - Communities,External Contractor,40198,Miscellaneous Expenses,5034,Ref7110,07/12/2022,0174497,360.00,Revenue,Mobility Care Services,70841,,
Chorley Borough Council,http://statistics.data.gov.uk/id/local-authority/30UE,Private Sector HSG Renewal,1073,EARL - Communities,External Contractor,40198,Miscellaneous Expenses,5034,Ref7111,07/12/2022,0174497,360.00,Revenue,Mobility Care Services,70841,,
Chorley Borough Council,http://statistics.data.gov.uk/id/local-authority/30UE,Private Sector HSG Renewal,1073,EARL - Communities,External Contractor,40198,Miscellaneous Expenses,5034,Ref7124,07/12/2022,0174497,114.50,Revenue,Mobility Care Services,70841,,
Chorley Borough Council,http://statistics.data.gov.uk/id/local-authority/30UE,Private Sector HSG Renewal,1073,EARL - Communities,External Contractor,40198,Miscellaneous Expenses,5034,Ref7125,07/12/2022,0174497,132.00,Revenue,Mobility Care Services,70841,,
Chorley Borough Council,http://statistics.data.gov.uk/id/local-authority/30UE,Private Sector HSG Renewal,1073,EARL - Communities,External Contractor,40198,Miscellaneous Expenses,5034,Ref7129,07/12/2022,0174497,440.00,Revenue,Mobility Care Services,70841,,
Chorley Borough Council,http://statistics.data.gov.uk/id/local-authority/30UE,Private Sector HSG Renewal,1073,EARL - Communities,External Contractor,40198,Miscellaneous Expenses,5034,Ref7130,07/12/2022,0174497,180.00,Revenue,Mobility Care Services,70841,,
Chorley Borough Council,http://statistics.data.gov.uk/id/local-authority/30UE,Private Sector HSG Renewal,1073,EARL - Communities,External Contractor,40198,Miscellaneous Expenses,5034,Ref7131,07/12/2022,0174497,264.00,Revenue,Mobility Care Services,70841,,
Chorley Borough Council,http://statistics.data.gov.uk/id/local-authority/30UE,Private Sector HSG Renewal,1073,EARL - Communities,External Contractor,40198,Miscellaneous Expenses,5034,Ref7132,07/12/2022,0174497,132.00,Revenue,Mobility Care Services,70841,,
Chorley Borough Council,http://statistics.data.gov.uk/id/local-authority/30UE,Private Sector HSG Renewal,1073,EARL - Communities,External Contractor,40198,Miscellaneous Expenses,5034,Ref7133,07/12/2022,0174497,396.00,Revenue,Mobility Care Services,70841,,
Chorley Borough Council,http://statistics.data.gov.uk/id/local-authority/30UE,Private Sector HSG Renewal,1073,EARL - Communities,External Contractor,40198,Miscellaneous Expenses,5034,Ref7138,07/12/2022,0174497,102.00,Revenue,Mobility Care Services,70841,,
Chorley Borough Council,http://statistics.data.gov.uk/id/local-authority/30UE,Private Sector HSG Renewal,1073,EARL - Communities,External Contractor,40198,Miscellaneous Expenses,5034,Ref7139,07/12/2022,0174497,85.00,Revenue,Mobility Care Services,70841,,
Chorley Borough Council,http://statistics.data.gov.uk/id/local-authority/30UE,Private Sector HSG Renewal,1073,EARL - Communities,External Contractor,40198,Miscellaneous Expenses,5034,Ref7140,07/12/2022,0174497,85.00,Revenue,Mobility Care Services,70841,,
Chorley Borough Council,http://statistics.data.gov.uk/id/local-authority/30UE,Private Sector HSG Renewal,1073,EARL - Communities,External Contractor,40198,Miscellaneous Expenses,5034,Ref7200,07/12/2022,0174497,132.00,Revenue,Mobility Care Services,70841,,
Chorley Borough Council,http://statistics.data.gov.uk/id/local-authority/30UE,Private Sector HSG Renewal,1073,EARL - Communities,External Contractor,40198,Miscellaneous Expenses,5034,Ref7201,07/12/2022,0174497,68.00,Revenue,Mobility Care Services,70841,,
Chorley Borough Council,http://statistics.data.gov.uk/id/local-authority/30UE,Private Sector HSG Renewal,1073,EARL - Communities,External Contractor,40198,Miscellaneous Expenses,5034,Ref7202,07/12/2022,0174497,68.00,Revenue,Mobility Care Services,70841,,
Chorley Borough Council,http://statistics.data.gov.uk/id/local-authority/30UE,Private Sector HSG Renewal,1073,EARL - Communities,External Contractor,40198,Miscellaneous Expenses,5034,Ref7203,07/12/2022,0174497,136.00,Revenue,Mobility Care Services,70841,,
Chorley Borough Council,http://statistics.data.gov.uk/id/local-authority/30UE,Private Sector HSG Renewal,1073,EARL - Communities,External Contractor,40198,Miscellaneous Expenses,5034,Ref7204,07/12/2022,0174497,102.00,Revenue,Mobility Care Services,70841,,
Chorley Borough Council,http://statistics.data.gov.uk/id/local-authority/30UE,Private Sector HSG Renewal,1073,EARL - Communities,External Contractor,40198,Miscellaneous Expenses,5034,Ref7205,07/12/2022,0174497,51.00,Revenue,Mobility Care Services,70841,,
Chorley Borough Council,http://statistics.data.gov.uk/id/local-authority/30UE,Private Sector HSG Renewal,1073,EARL - Communities,External Contractor,40198,Miscellaneous Expenses,5034,Ref7206,07/12/2022,0174497,132.00,Revenue,Mobility Care Services,70841,,
Chorley Borough Council,http://statistics.data.gov.uk/id/local-authority/30UE,Private Sector HSG Renewal,1073,EARL - Communities,External Contractor,40198,Miscellaneous Expenses,5034,Ref7207,07/12/2022,0174497,500.00,Revenue,Mobility Care Services,70841,,
Chorley Borough Council,http://statistics.data.gov.uk/id/local-authority/30UE,Private Sector HSG Renewal,1073,EARL - Communities,External Contractor,40198,Miscellaneous Expenses,5034,Ref7208,07/12/2022,0174497,680.00,Revenue,Mobility Care Services,70841,,
Chorley Borough Council,http://statistics.data.gov.uk/id/local-authority/30UE,Private Sector HSG Renewal,1073,EARL - Communities,External Contractor,40198,Miscellaneous Expenses,5034,Ref7209,07/12/2022,0174497,114.50,Revenue,Mobility Care Services,70841,,
Chorley Borough Council,http://statistics.data.gov.uk/id/local-authority/30UE,Private Sector HSG Renewal,1073,EARL - Communities,External Contractor,40198,Miscellaneous Expenses,5034,Ref7070,07/12/2022,0174497,68.00,Revenue,Mobility Care Services,70841,,
Chorley Borough Council,http://statistics.data.gov.uk/id/local-authority/30UE,Private Sector HSG Renewal,1073,EARL - Communities,External Contractor,40198,Miscellaneous Expenses,5034,Ref7093,07/12/2022,0174497,114.50,Revenue,Mobility Care Services,70841,,
Chorley Borough Council,http://statistics.data.gov.uk/id/local-authority/30UE,Private Sector HSG Renewal,1073,EARL - Communities,External Contractor,40198,Miscellaneous Expenses,5034,Ref7094,07/12/2022,0174497,114.50,Revenue,Mobility Care Services,70841,,
Chorley Borough Council,http://statistics.data.gov.uk/id/local-authority/30UE,Private Sector HSG Renewal,1073,EARL - Communities,External Contractor,40198,Miscellaneous Expenses,5034,Ref7095,07/12/2022,0174497,114.50,Revenue,Mobility Care Services,70841,,
Chorley Borough Council,http://statistics.data.gov.uk/id/local-authority/30UE,Private Sector HSG Renewal,1073,EARL - Communities,External Contractor,40198,Miscellaneous Expenses,5034,Ref7096,07/12/2022,0174497,68.00,Revenue,Mobility Care Services,70841,,
Chorley Borough Council,http://statistics.data.gov.uk/id/local-authority/30UE,Private Sector HSG Renewal,1073,EARL - Communities,External Contractor,40198,Miscellaneous Expenses,5034,Ref7097,07/12/2022,0174497,34.00,Revenue,Mobility Care Services,70841,,
Chorley Borough Council,http://statistics.data.gov.uk/id/local-authority/30UE,Private Sector HSG Renewal,1073,EARL - Communities,External Contractor,40198,Miscellaneous Expenses,5034,Ref7098,07/12/2022,0174497,170.00,Revenue,Mobility Care Services,70841,,
Chorley Borough Council,http://statistics.data.gov.uk/id/local-authority/30UE,Private Sector HSG Renewal,1073,EARL - Communities,External Contractor,40198,Miscellaneous Expenses,5034,Ref7099,07/12/2022,0174497,280.00,Revenue,Mobility Care Services,70841,,
Chorley Borough Council,http://statistics.data.gov.uk/id/local-authority/30UE,Private Sector HSG Renewal,1073,EARL - Communities,External Contractor,40198,Miscellaneous Expenses,5034,Ref7100,07/12/2022,0174497,264.00,Revenue,Mobility Care Services,70841,,
Chorley Borough Council,http://statistics.data.gov.uk/id/local-authority/30UE,Private Sector HSG Renewal,1073,EARL - Communities,External Contractor,40198,Miscellaneous Expenses,5034,Ref7101,07/12/2022,0174497,110.50,Revenue,Mobility Care Services,70841,,
Chorley Borough Council,http://statistics.data.gov.uk/id/local-authority/30UE,Private Sector HSG Renewal,1073,EARL - Communities,External Contractor,40198,Miscellaneous Expenses,5034,Ref7102,07/12/2022,0174497,364.90,Revenue,Mobility Care Services,70841,,
Chorley Borough Council,http://statistics.data.gov.uk/id/local-authority/30UE,Control Accounts,Control,GROW - Commercial & Property,Manual Control Account,00001,Balance Sheet,Balance,,21/12/2022,0174763,"2,916.66",Revenue,Modern Matrix,87036,,
Chorley Borough Council,http://statistics.data.gov.uk/id/local-authority/30UE,Open Spaces,1038,PLAN - Planning & Development,Maintenance/Nature Reserves,20045,Grounds Maintenance Costs,5013,All Access Path Astley Park trail. Path creation as per specification and quotation for LEF bid on behalf of Friends of Astley Park.,21/12/2022,0174789,"9,390.00",Revenue,Mr Andy Hart,72236,,
Chorley Borough Council,http://statistics.data.gov.uk/id/local-authority/30UE,Building Control,1090,PLAN - Planning & Development,Misc Expenses,40200,Miscellaneous Expenses,5034,compensation,21/12/2022,0174857,300.00,Revenue,Mr Leon Purcell,87065,,
Chorley Borough Council,http://statistics.data.gov.uk/id/local-authority/30UE,Central Support Services,1009,GOVN - Policy & Governance,Processional Routes,40177,Miscellaneous Expenses,5034,"Printing of Remembrance Sunday Order of Service as per estimate. 8PP A5.  Quantity 3,000. ",02/12/2022,0174198,442.00,Revenue,N B Colour Print Ltd,17917,,
Chorley Borough Council,http://statistics.data.gov.uk/id/local-authority/30UE,Central Support Services,1009,CUST - Customer & Digital,Computer Software-Maintenance,40107,Communication and Computing,5028,NEC Cloud hosting support and maintenance,21/12/2022,0174736,"8,994.00",Revenue,NEC Software Solutions UK Ltd,18285,,
Chorley Borough Council,http://statistics.data.gov.uk/id/local-authority/30UE,Central Support Services,1009,CUST - Customer & Digital,Computer Software-Maintenance,40107,Communication and Computing,5028,NEC Cloud hosting support and maintenance,21/12/2022,0174738,"3,000.00",Revenue,NEC Software Solutions UK Ltd,18285,,
Chorley Borough Council,http://statistics.data.gov.uk/id/local-authority/30UE,Capital,Capital,GOVN - Policy & Governance,Other Capital Grants/Loans,03000,Capital Expenditure,Capital,Grant Claim No.27,21/12/2022,0174834,"40,248.00",Capital,Next Big Thing Developments,77044,,
Chorley Borough Council,http://statistics.data.gov.uk/id/local-authority/30UE,Tourism,1039,GOVN - Policy & Governance,Professional Fees,40063,Services,5027,Management fee and expenses for Chorley Live event,21/12/2022,0174070,"3,000.00",Revenue,Nigel Stewart,63086,,
Chorley Borough Council,http://statistics.data.gov.uk/id/local-authority/30UE,Tourism,1039,GOVN - Policy & Governance,Professional Fees,40063,Services,5027,Management fee and expenses for Chorley,21/12/2022,0174085,"3,021.00",Revenue,Nigel Stewart,63086,,
Chorley Borough Council,http://statistics.data.gov.uk/id/local-authority/30UE,Central Support Services,1009,CUST - Customer & Digital,Computer Software-Maintenance,40107,Communication and Computing,5028,1 x Lot 1 DNS Services - Call Off Charges 1 x Community Charge 1 x Individual quarterly invoice charge commencing Y1 for Q4,21/12/2022,0174539,765.94,Revenue,Nominet UK,81408,,
Chorley Borough Council,http://statistics.data.gov.uk/id/local-authority/30UE,Central Support Services,1009,GOVN - Policy & Governance,Publicity - Advertising,40157,Miscellaneous Expenses,5034,Invoice CC007 Film Production Event Coverage at Astley Bonfire Night,02/12/2022,0174295,650.00,Revenue,North Film Studios Limited,85582,,
Chorley Borough Council,http://statistics.data.gov.uk/id/local-authority/30UE,Central Support Services,1009,GOVN - Policy & Governance,Publicity - Advertising,40157,Miscellaneous Expenses,5034,Invoice No: CC08 Film Production on additional pick up days 22 + 23 November,21/12/2022,0174739,975.00,Revenue,North Film Studios Limited,85582,,
Chorley Borough Council,http://statistics.data.gov.uk/id/local-authority/30UE,Business Support,1095,GROW - Commercial & Property,Contract Catering,40038,Catering,5024,Lakeland Milk Jiggers NWT127 X 4,21/12/2022,0174791,16.76,Revenue,North West Tea FM Solutions,78255,,
Chorley Borough Council,http://statistics.data.gov.uk/id/local-authority/30UE,Business Support,1095,GROW - Commercial & Property,Refreshments,40036,Catering,5024,Clipper Fairtrade Coffee x 24,21/12/2022,0174791,426.00,Revenue,North West Tea FM Solutions,78255,,
Chorley Borough Council,http://statistics.data.gov.uk/id/local-authority/30UE,Business Support,1095,GROW - Commercial & Property,Refreshments,40036,Catering,5024, Fairtrade teabags,21/12/2022,0174791,103.96,Revenue,North West Tea FM Solutions,78255,,
Chorley Borough Council,http://statistics.data.gov.uk/id/local-authority/30UE,Business Support,1095,GROW - Commercial & Property,Contract Catering,40038,Catering,5024,Biscuits x 4,21/12/2022,0174791,55.96,Revenue,North West Tea FM Solutions,78255,,
Chorley Borough Council,http://statistics.data.gov.uk/id/local-authority/30UE,Central Support Services,1009,CUST - Customer & Digital,Hire Of Vehicles and Plant,30028,Contrct Hire & Operating Lease,5018,Vehicle hire 3.5ton Luton Van with tail-lift,14/12/2022,0172840,683.20,Revenue,Northgate Vehicle Hire (NW) Ltd,17360,,
Chorley Borough Council,http://statistics.data.gov.uk/id/local-authority/30UE,Central Support Services,1009,CUST - Customer & Digital,Hire Of Vehicles and Plant,30028,Contrct Hire & Operating Lease,5018,Vehicle hire 3.5ton Luton Van with tail-lift,14/12/2022,0173781,683.20,Revenue,Northgate Vehicle Hire (NW) Ltd,17360,,
Chorley Borough Council,http://statistics.data.gov.uk/id/local-authority/30UE,Central Support Services,1009,CUST - Customer & Digital,Hire Of Vehicles and Plant,30028,Contrct Hire & Operating Lease,5018,Vehicle hire 3.5ton Luton Van with tail-lift,14/12/2022,0174519,683.20,Revenue,Northgate Vehicle Hire (NW) Ltd,17360,,
Chorley Borough Council,http://statistics.data.gov.uk/id/local-authority/30UE,Parking Services,1066,GROW - Commercial & Property,Electricity,20013,Energy Costs,5006,1/10 to 31/10/22,02/12/2022,0174365,"1,487.10",Revenue,Npower Commercial Gas,16814,,
Chorley Borough Council,http://statistics.data.gov.uk/id/local-authority/30UE,Business Support,1095,GROW - Commercial & Property,Electricity,20013,Energy Costs,5006,1/10 to 31/10/22,02/12/2022,0174368,"7,153.27",Revenue,Npower Commercial Gas,16814,,
Chorley Borough Council,http://statistics.data.gov.uk/id/local-authority/30UE,Central Support Services,1009,GROW - Commercial & Property,Electricity,20013,Energy Costs,5006,1/10 to 31/10/22,02/12/2022,0174369,"6,028.19",Revenue,Npower Commercial Gas,16814,,
Chorley Borough Council,http://statistics.data.gov.uk/id/local-authority/30UE,Recreation & Sport,1037,GROW - Commercial & Property,Electricity,20013,Energy Costs,5006,1/10 to 31/10/22,02/12/2022,0174370,309.44,Revenue,Npower Commercial Gas,16814,,
Chorley Borough Council,http://statistics.data.gov.uk/id/local-authority/30UE,Recreation & Sport,1037,GROW - Commercial & Property,Electricity,20013,Energy Costs,5006,,02/12/2022,0174370,1.02,Revenue,Npower Commercial Gas,16814,,
Chorley Borough Council,http://statistics.data.gov.uk/id/local-authority/30UE,Recreation & Sport,1037,GROW - Commercial & Property,Electricity,20013,Energy Costs,5006,1/10 to 31/10/22,02/12/2022,0174371,"2,669.44",Revenue,Npower Commercial Gas,16814,,
Chorley Borough Council,http://statistics.data.gov.uk/id/local-authority/30UE,Recreation & Sport,1037,GROW - Commercial & Property,Electricity,20013,Energy Costs,5006,1/10 to 31/10/22,02/12/2022,0174372,748.24,Revenue,Npower Commercial Gas,16814,,
Chorley Borough Council,http://statistics.data.gov.uk/id/local-authority/30UE,Recreation & Sport,1037,GROW - Commercial & Property,Electricity,20013,Energy Costs,5006,1/10 to 31/10/22,02/12/2022,0174373,"13,110.99",Revenue,Npower Commercial Gas,16814,,
Chorley Borough Council,http://statistics.data.gov.uk/id/local-authority/30UE,Central Support Services,1009,GROW - Commercial & Property,Electricity,20013,Energy Costs,5006,1/10 to 31/10/22,02/12/2022,0174374,"1,386.39",Revenue,Npower Commercial Gas,16814,,
Chorley Borough Council,http://statistics.data.gov.uk/id/local-authority/30UE,Recreation & Sport,1037,GROW - Commercial & Property,Electricity,20013,Energy Costs,5006,1/10 to 31/10/22,02/12/2022,0174375,296.89,Revenue,Npower Commercial Gas,16814,,
Chorley Borough Council,http://statistics.data.gov.uk/id/local-authority/30UE,Central Support Services,1009,GROW - Commercial & Property,Electricity,20013,Energy Costs,5006,1/10 to 31/10/22,02/12/2022,0174376,"2,418.99",Revenue,Npower Commercial Gas,16814,,
Chorley Borough Council,http://statistics.data.gov.uk/id/local-authority/30UE,Business Support,1095,GROW - Commercial & Property,Electricity,20013,Energy Costs,5006,1/10 to 31/10/22,02/12/2022,0174378,"7,643.61",Revenue,Npower Commercial Gas,16814,,
Chorley Borough Council,http://statistics.data.gov.uk/id/local-authority/30UE,Business Support,1095,GROW - Commercial & Property,Electricity,20013,Energy Costs,5006,1/10 to 31/10/22,02/12/2022,0174379,"3,191.01",Revenue,Npower Commercial Gas,16814,,
Chorley Borough Council,http://statistics.data.gov.uk/id/local-authority/30UE,Open Spaces,1038,GROW - Commercial & Property,Electricity,20013,Energy Costs,5006,1/10 to 31/10/22,02/12/2022,0174381,613.32,Revenue,Npower Commercial Gas,16814,,
Chorley Borough Council,http://statistics.data.gov.uk/id/local-authority/30UE,Recreation & Sport,1037,GROW - Commercial & Property,Electricity,20013,Energy Costs,5006,1/10 to 31/10/22,02/12/2022,0174383,"2,394.71",Revenue,Npower Commercial Gas,16814,,
Chorley Borough Council,http://statistics.data.gov.uk/id/local-authority/30UE,Homelessness,1075,GROW - Commercial & Property,Electricity,20013,Energy Costs,5006,1/10 to 31/10/22,02/12/2022,0174384,671.36,Revenue,Npower Commercial Gas,16814,,
Chorley Borough Council,http://statistics.data.gov.uk/id/local-authority/30UE,Parking Services,1066,GROW - Commercial & Property,Electricity,20013,Energy Costs,5006,1/10 to 31/10/22,02/12/2022,0174385,"2,479.14",Revenue,Npower Commercial Gas,16814,,
Chorley Borough Council,http://statistics.data.gov.uk/id/local-authority/30UE,Homelessness,1075,GROW - Commercial & Property,Electricity,20013,Energy Costs,5006,1/10 to 31/10/22,02/12/2022,0174386,"1,027.44",Revenue,Npower Commercial Gas,16814,,
Chorley Borough Council,http://statistics.data.gov.uk/id/local-authority/30UE,Business Support,1095,GROW - Commercial & Property,Electricity,20013,Energy Costs,5006,1/10 to 31/10/22,02/12/2022,0174387,"1,141.95",Revenue,Npower Commercial Gas,16814,,
Chorley Borough Council,http://statistics.data.gov.uk/id/local-authority/30UE,Parking Services,1066,GROW - Commercial & Property,Electricity,20013,Energy Costs,5006,1/10 to 31/10/22,02/12/2022,0174388,704.36,Revenue,Npower Commercial Gas,16814,,
Chorley Borough Council,http://statistics.data.gov.uk/id/local-authority/30UE,Service Management Support,1009,GROW - Commercial & Property,Electricity,20013,Energy Costs,5006,1/10 to 31/10/22,02/12/2022,0174389,475.41,Revenue,Npower Commercial Gas,16814,,
Chorley Borough Council,http://statistics.data.gov.uk/id/local-authority/30UE,Homelessness,1075,GROW - Commercial & Property,Electricity,20013,Energy Costs,5006,1/10 to 31/10/22,02/12/2022,0174390,599.05,Revenue,Npower Commercial Gas,16814,,
Chorley Borough Council,http://statistics.data.gov.uk/id/local-authority/30UE,Service Management & Support,1009,CUST - Customer & Digital,Tools & Equipment - Purchase,40003,"Equipment, Furniture & Materia",5023,As per Quotation No 315594,21/12/2022,0174802,373.95,Revenue,Nuts Engineering Supplies Ltd,16632,,
Chorley Borough Council,http://statistics.data.gov.uk/id/local-authority/30UE,Tourism,1039,GOVN - Policy & Governance,External Contractor,40198,Miscellaneous Expenses,5034,Hiring of Betty`s Tipis for our Christmas Attraction Winter Wonderland,21/12/2022,0174510,"4,800.00",Revenue,Outside Events Ltd,84236,,
Chorley Borough Council,http://statistics.data.gov.uk/id/local-authority/30UE,Planning Policy,1092,PLAN - Planning & Development,Operational Employees Salaries,10000,Direct Employee Expenses,5001,Supply of agency staff to work on the Central Lancashire Local Plan,07/12/2022,0174244,"1,023.50",Revenue,Park Avenue Recruitment Ltd,82305,,
Chorley Borough Council,http://statistics.data.gov.uk/id/local-authority/30UE,Business Support,1095,GROW - Commercial & Property,Cleaning Materials,40019,"Equipment, Furniture & Materia",5023,6 x AA301 SMARTONE MINI JUMBO ROLL ,07/12/2022,0174414,210.72,Revenue,Pattersons Holdings (Bristol),77537,,
Chorley Borough Council,http://statistics.data.gov.uk/id/local-authority/30UE,Business Support,1095,GROW - Commercial & Property,Cleaning Materials,40019,"Equipment, Furniture & Materia",5023,8 x AE214JANGRO LUXURY INTERLEAVED HAND TOWEL ,07/12/2022,0174414,142.40,Revenue,Pattersons Holdings (Bristol),77537,,
Chorley Borough Council,http://statistics.data.gov.uk/id/local-authority/30UE,Business Support,1095,GROW - Commercial & Property,Cleaning Materials,40019,"Equipment, Furniture & Materia",5023,1 x AF113 CENTREFEED ROLL (6),07/12/2022,0174414,7.77,Revenue,Pattersons Holdings (Bristol),77537,,
Chorley Borough Council,http://statistics.data.gov.uk/id/local-authority/30UE,Business Support,1095,GROW - Commercial & Property,Cleaning Materials,40019,"Equipment, Furniture & Materia",5023,2 X BA010-5 JANGRO MULTI-PURPOSE CLEANER 5L ,07/12/2022,0174414,15.74,Revenue,Pattersons Holdings (Bristol),77537,,
Chorley Borough Council,http://statistics.data.gov.uk/id/local-authority/30UE,Business Support,1095,GROW - Commercial & Property,Cleaning Materials,40019,"Equipment, Furniture & Materia",5023,6 X PX00012 FINISH DISHWASHER CLEANER 250ML ,07/12/2022,0174414,20.58,Revenue,Pattersons Holdings (Bristol),77537,,
Chorley Borough Council,http://statistics.data.gov.uk/id/local-authority/30UE,Business Support,1095,GROW - Commercial & Property,Cleaning Materials,40019,"Equipment, Furniture & Materia",5023,1 X BC015-5 JANGRO THICKENED BLEACH 5LTR,07/12/2022,0174414,2.33,Revenue,Pattersons Holdings (Bristol),77537,,
Chorley Borough Council,http://statistics.data.gov.uk/id/local-authority/30UE,Business Support,1095,GROW - Commercial & Property,Cleaning Materials,40019,"Equipment, Furniture & Materia",5023,12 X BC060-1 JANGRO PREMIUM ACIDIC TOILET CLEANER & LIMESCALE REMOVER 1L,07/12/2022,0174414,18.36,Revenue,Pattersons Holdings (Bristol),77537,,
Chorley Borough Council,http://statistics.data.gov.uk/id/local-authority/30UE,Business Support,1095,GROW - Commercial & Property,Cleaning Materials,40019,"Equipment, Furniture & Materia",5023,12 X BC041-1 JANGRO PERFUMED TOILET CLEANER 1L ,07/12/2022,0174414,10.80,Revenue,Pattersons Holdings (Bristol),77537,,
Chorley Borough Council,http://statistics.data.gov.uk/id/local-authority/30UE,Business Support,1095,GROW - Commercial & Property,Cleaning Materials,40019,"Equipment, Furniture & Materia",5023,"30 X CG106-B1 EXEL MICROFIBRE CLOTH 40CM X 40CM, BLUE ",07/12/2022,0174414,9.30,Revenue,Pattersons Holdings (Bristol),77537,,
Chorley Borough Council,http://statistics.data.gov.uk/id/local-authority/30UE,Business Support,1095,GROW - Commercial & Property,Cleaning Materials,40019,"Equipment, Furniture & Materia",5023,"60 X CG106-G1 EXEL MICROFIBRE CLOTH 40X40CM, GREEN ",07/12/2022,0174414,18.60,Revenue,Pattersons Holdings (Bristol),77537,,
Chorley Borough Council,http://statistics.data.gov.uk/id/local-authority/30UE,Business Support,1095,GROW - Commercial & Property,Cleaning Materials,40019,"Equipment, Furniture & Materia",5023,"30 X CG106-P1 EXEL MICROFIBRE CLOTH 40X40CM, PINK ",07/12/2022,0174414,9.30,Revenue,Pattersons Holdings (Bristol),77537,,
Chorley Borough Council,http://statistics.data.gov.uk/id/local-authority/30UE,Business Support,1095,GROW - Commercial & Property,Cleaning Materials,40019,"Equipment, Furniture & Materia",5023,"60 X CG106-Y1 EXEL MICROFIBRE CLOTH 40X40CM, YELLOW ",07/12/2022,0174414,18.60,Revenue,Pattersons Holdings (Bristol),77537,,
Chorley Borough Council,http://statistics.data.gov.uk/id/local-authority/30UE,Business Support,1095,GROW - Commercial & Property,Cleaning Materials,40019,"Equipment, Furniture & Materia",5023,3 X DG150-L NITRILE DISPOSABLE GLOVE POWDER FREE BLUE LARGE x 100 ,07/12/2022,0174414,27.75,Revenue,Pattersons Holdings (Bristol),77537,,
Chorley Borough Council,http://statistics.data.gov.uk/id/local-authority/30UE,Business Support,1095,GROW - Commercial & Property,Cleaning Materials,40019,"Equipment, Furniture & Materia",5023,6 X HA001-16 MULTI YARN KENTUCKY MOP HEAD 16OZ ,07/12/2022,0174414,7.44,Revenue,Pattersons Holdings (Bristol),77537,,
Chorley Borough Council,http://statistics.data.gov.uk/id/local-authority/30UE,Business Support,1095,GROW - Commercial & Property,Cleaning Materials,40019,"Equipment, Furniture & Materia",5023,4 X HLB005-B SOFT EASIGRIP SPONGE SCOURING PAD BLUE/WHITE (10) ,07/12/2022,0174414,5.76,Revenue,Pattersons Holdings (Bristol),77537,,
Chorley Borough Council,http://statistics.data.gov.uk/id/local-authority/30UE,Central Support Services,1009,GOVN - Policy & Governance,Cleaning Materials,40019,"Equipment, Furniture & Materia",5023,Stock code: BC015-5 Thick Bleach 4 x 5 litres ,14/12/2022,0174505,8.44,Revenue,Pattersons Holdings (Bristol),77537,,
Chorley Borough Council,http://statistics.data.gov.uk/id/local-authority/30UE,Central Support Services,1009,GOVN - Policy & Governance,Cleaning Materials,40019,"Equipment, Furniture & Materia",5023,Stock code: CM180 Black bin liners ,14/12/2022,0174505,70.50,Revenue,Pattersons Holdings (Bristol),77537,,
Chorley Borough Council,http://statistics.data.gov.uk/id/local-authority/30UE,Central Support Services,1009,GOVN - Policy & Governance,Cleaning Materials,40019,"Equipment, Furniture & Materia",5023,Stock Code: BC040-5. Jangro fragranced toilet cleaner. size 5 Litre � QTY 8 x 5 Litre,14/12/2022,0174505,28.24,Revenue,Pattersons Holdings (Bristol),77537,,
Chorley Borough Council,http://statistics.data.gov.uk/id/local-authority/30UE,Central Support Services,1009,GOVN - Policy & Governance,Cleaning Materials,40019,"Equipment, Furniture & Materia",5023,Stock Code: AD104 Mini Jumbo 12 pack QTY 10 packs ,14/12/2022,0174505,89.10,Revenue,Pattersons Holdings (Bristol),77537,,
Chorley Borough Council,http://statistics.data.gov.uk/id/local-authority/30UE,Central Support Services,1009,GOVN - Policy & Governance,Cleaning Materials,40019,"Equipment, Furniture & Materia",5023,Stock Code: AC003 Small toilet rolls 36 pack ,14/12/2022,0174505,60.50,Revenue,Pattersons Holdings (Bristol),77537,,
Chorley Borough Council,http://statistics.data.gov.uk/id/local-authority/30UE,Central Support Services,1009,GOVN - Policy & Governance,Cleaning Materials,40019,"Equipment, Furniture & Materia",5023,Stock Code: BK102-C1 Luxury foam soap box of 6 QTY 4 boxes ,14/12/2022,0174505,60.00,Revenue,Pattersons Holdings (Bristol),77537,,
Chorley Borough Council,http://statistics.data.gov.uk/id/local-authority/30UE,Central Support Services,1009,GOVN - Policy & Governance,Cleaning Materials,40019,"Equipment, Furniture & Materia",5023,Stock Code: AE233. Paper Hand Towels. QTY 20 boxes ,14/12/2022,0174505,170.60,Revenue,Pattersons Holdings (Bristol),77537,,
Chorley Borough Council,http://statistics.data.gov.uk/id/local-authority/30UE,Central Support Services,1009,GOVN - Policy & Governance,Cleaning Materials,40019,"Equipment, Furniture & Materia",5023,AF113 Blue Centre feed rolls in a 6 pack QTY 12 packs ,14/12/2022,0174505,88.44,Revenue,Pattersons Holdings (Bristol),77537,,
Chorley Borough Council,http://statistics.data.gov.uk/id/local-authority/30UE,Service Management & Support,1009,CUST - Customer & Digital,Supplies-Grounds Maintenance,40025,"Equipment, Furniture & Materia",5023,Quantity x 3 JANGRO WHITE HYGIENE ROLLS 10`` 2 PLY 50M X18- AG116 Quantity x 10 JANGRO GLASS & MIRROR CLEANER 750ML- BA028-75 ,21/12/2022,0174556,299.24,Revenue,Pattersons Holdings (Bristol),77537,,
Chorley Borough Council,http://statistics.data.gov.uk/id/local-authority/30UE,Central Support Services,1009,GOVN - Policy & Governance,Misc Expenses,40200,Miscellaneous Expenses,5034,Photography for Communities,21/12/2022,0174297,400.00,Revenue,Paul Heyes Photographer,20909,,
Chorley Borough Council,http://statistics.data.gov.uk/id/local-authority/30UE,Tourism,1039,GOVN - Policy & Governance,Professional Fees,40063,Services,5027,Remaining 2022 event photography,02/12/2022,0174413,300.00,Revenue,Paul Heyes Photographer,20909,,
Chorley Borough Council,http://statistics.data.gov.uk/id/local-authority/30UE,Central Support Services,1009,GOVN - Policy & Governance,HR Recruitment - Advertising,15300,Indirect Employee Expenses,5002,Head of service recruitment,14/12/2022,0174677,"14,975.00",Revenue,Penna Plc,77833,,
Chorley Borough Council,http://statistics.data.gov.uk/id/local-authority/30UE,Central Support Services,1009,GOVN - Policy & Governance,HR Approved Occ Health Fees,15201,Indirect Employee Expenses,5002,Occupational Health charges for October 2022,21/12/2022,0174407,378.00,Revenue,People Asset Management Limited,76487,,
Chorley Borough Council,http://statistics.data.gov.uk/id/local-authority/30UE,Central Support Services,1009,GOVN - Policy & Governance,HR Approved Occ Health Fees,15201,Indirect Employee Expenses,5002,,21/12/2022,0174407,233.63,Revenue,People Asset Management Limited,76487,,
Chorley Borough Council,http://statistics.data.gov.uk/id/local-authority/30UE,Service Management & Support,1009,CUST - Customer & Digital,Supplies-Grounds Maintenance,40025,"Equipment, Furniture & Materia",5023,Supply indoor plants for the Queens Memorial,21/12/2022,0174592,395.40,Revenue,Peter H Smith Limited,17088,,
Chorley Borough Council,http://statistics.data.gov.uk/id/local-authority/30UE,Service Management & Support,1009,CUST - Customer & Digital,Supplies-Grounds Maintenance,40025,"Equipment, Furniture & Materia",5023,Supply indoor plants for Remembrance Sunday event,21/12/2022,0174593,343.00,Revenue,Peter H Smith Limited,17088,,
Chorley Borough Council,http://statistics.data.gov.uk/id/local-authority/30UE,Service Management & Support,1009,CUST - Customer & Digital,Diesel/Derv,30007,Direct Transport Costs,5016,As per chest procurement 7800 litres of road diesel ,02/12/2022,0174247,"11,018.91",Revenue,Pilkington Oils,18075,,
Chorley Borough Council,http://statistics.data.gov.uk/id/local-authority/30UE,Service Management & Support,1009,CUST - Customer & Digital,Supplies-Grounds Maintenance,40025,"Equipment, Furniture & Materia",5023,210 litre barrel of Adblue,14/12/2022,0174447,325.50,Revenue,Pilkington Oils,18075,,
Chorley Borough Council,http://statistics.data.gov.uk/id/local-authority/30UE,Development Control,1091,PLAN - Planning & Development,Professional Fees,40063,Services,5027,Planning Enforcement Services April 2022 to March 2023,14/12/2022,0174404,"1,140.00",Revenue,Planning and PACE Solutions Ltd,82083,,
Chorley Borough Council,http://statistics.data.gov.uk/id/local-authority/30UE,Capital,Capital,GROW - Commercial & Property,Other Capital Related Fees,03024,Capital Expenditure,Capital,Please supply signage as per REF17501/1,02/12/2022,0172881,574.00,Capital,Poppy Signs Ltd,21898,,
Chorley Borough Council,http://statistics.data.gov.uk/id/local-authority/30UE,Capital,Capital,GROW - Commercial & Property,Other Capital Related Fees,03024,Capital Expenditure,Capital,Ref 17743/1  prints for Bob Inn applied to existing boards,02/12/2022,0174268,267.25,Capital,Poppy Signs Ltd,21898,,
Chorley Borough Council,http://statistics.data.gov.uk/id/local-authority/30UE,Central Support Services,1009,GOVN - Policy & Governance,Exhibitions & Special Events,40158,Miscellaneous Expenses,5034,Take the display out of stock at Poppy Signs and re-install exactly as last tim 2 1 Unit(s) Remove the entire Santa Post display ,07/12/2022,0174478,790.00,Revenue,Poppy Signs Ltd,21898,,
Chorley Borough Council,http://statistics.data.gov.uk/id/local-authority/30UE,Service Management & Support,1009,CUST - Customer & Digital,Vehicles and Plant Maintenance,30045,Direct Transport Costs,5016,"Batch of 4 self adhesive chevron stickers Bespoke size - Each sticker is a single piece ready to apply,",14/12/2022,0174525,383.77,Revenue,Poppy Signs Ltd,21898,,
Chorley Borough Council,http://statistics.data.gov.uk/id/local-authority/30UE,Tourism,1039,GOVN - Policy & Governance,Publicity - Advertising,40157,Miscellaneous Expenses,5034,Install all the ice rink panels at Chorley`s Winter Wonderland on Cleveland Street Car park opposite the Town Hall.,14/12/2022,0174546,404.63,Revenue,Poppy Signs Ltd,21898,,
Chorley Borough Council,http://statistics.data.gov.uk/id/local-authority/30UE,Recreation & Sport,1037,GOVN - Policy & Governance,Performing Rights Society Fees,40148,Grants and Subscriptions,5031,Music Licence for the Lancastrian at Chorley Town Hall from 06/07/22 to 05/10/22.,21/12/2022,0174740,391.72,Revenue,PPL PRS Ltd,77455,,
Chorley Borough Council,http://statistics.data.gov.uk/id/local-authority/30UE,Central Support Services,1009,CUST - Customer & Digital,IT Consultancy Fees,40223,Services,5027,Professional services to support the implementation and roll out of shared virtual desktop across South Ribble and CBC,07/12/2022,0174483,"6,375.00",Revenue,Proact IT UK Limited,85559,,
Chorley Borough Council,http://statistics.data.gov.uk/id/local-authority/30UE,Homelessness,1075,EARL - Communities,Service Fees,40056,Services,5027,Hotel - NAMES REDACTED,14/12/2022,0174741,"1,649.00",Revenue,Purple Roomz,84223,,
Chorley Borough Council,http://statistics.data.gov.uk/id/local-authority/30UE,Regulatory Services,1048,PLAN - Planning & Development,Taxi Testing & Vehicle Safety Report,40234,Services,5027,mot`s,21/12/2022,0174742,324.25,Revenue,R.C.J Motors,63625,,
Chorley Borough Council,http://statistics.data.gov.uk/id/local-authority/30UE,Culture & Heritage,1036,GOVN - Policy & Governance,Arts Development Initiatives,40187,Miscellaneous Expenses,5034,payment for animation and projection - Astley Illuminated.,02/12/2022,0174299,500.00,Revenue,Rebecca Chesney,78286,,
Chorley Borough Council,http://statistics.data.gov.uk/id/local-authority/30UE,Capital,Capital,CUST - Customer & Digital,Main Contractor,03007,Capital Expenditure,Capital,CCTV for Bamber Bridge 3G pitches,07/12/2022,0174260,"1,761.20",Capital,Redvision CCTV,86991,,
Chorley Borough Council,http://statistics.data.gov.uk/id/local-authority/30UE,Capital,Capital,CUST - Customer & Digital,Main Contractor,03007,Capital Expenditure,Capital,CCTV cameras for manor road clayton green,07/12/2022,0174261,"1,260.55",Capital,Redvision CCTV,86991,,
Chorley Borough Council,http://statistics.data.gov.uk/id/local-authority/30UE,Capital,Capital,CUST - Customer & Digital,Main Contractor,03007,Capital Expenditure,Capital,CCTV for Cunnery Meadow,07/12/2022,0174262,"1,260.55",Capital,Redvision CCTV,86991,,
Chorley Borough Council,http://statistics.data.gov.uk/id/local-authority/30UE,Capital,Capital,CUST - Customer & Digital,Main Contractor,03007,Capital Expenditure,Capital,CCTV cameras for Astley Hall,07/12/2022,0174263,"8,049.50",Capital,Redvision CCTV,86991,,
Chorley Borough Council,http://statistics.data.gov.uk/id/local-authority/30UE,Capital,Capital,GOVN - Policy & Governance,Architects Fees,03022,Capital Expenditure,Capital,Chorley Town Hall confidential waste collection from 1 September 2022. ONE OFF - Sacks/Boxes - Off Site - Paper Confident -,21/12/2022,0170598,"1,361.25",Capital,Restore Datashred,16853,,
Chorley Borough Council,http://statistics.data.gov.uk/id/local-authority/30UE,Central Support Services,1009,GOVN - Policy & Governance,IT Software - Annual Licences,40101,Communication and Computing,5028,,14/12/2022,0174300,"18,000.00",Revenue,Reward Gateway (UK) Ltd,77948,,
Chorley Borough Council,http://statistics.data.gov.uk/id/local-authority/30UE,Service Management & Support,1009,CUST - Customer & Digital,Supplies-Grounds Maintenance,40025,"Equipment, Furniture & Materia",5023,Supply 20 tubs of Impact line marker,02/12/2022,0174396,564.00,Revenue,Rigby Taylor Ltd,16299,,
Chorley Borough Council,http://statistics.data.gov.uk/id/local-authority/30UE,Central Support Services,1009,GROW - Commercial & Property,Professional Fees,40063,Services,5027,Marketing fees for council commercial property from May 2022 to April 2023,07/12/2022,0174469,"1,020.00",Revenue,Rightmove Group Ltd,77717,,
Chorley Borough Council,http://statistics.data.gov.uk/id/local-authority/30UE,Central Support Services,1009,GOVN - Policy & Governance,Processional Routes,40177,Miscellaneous Expenses,5034,Traffic management services for Chorley`s Remembrance Sunday Parade on Sunday 13th November 2022.,02/12/2022,0174188,792.00,Revenue,Road Safety Services Ltd,69457,,
Chorley Borough Council,http://statistics.data.gov.uk/id/local-authority/30UE,Capital,Capital,GROW - Commercial & Property,Main Contractor,03007,Capital Expenditure,Capital,Delivery of the Tatton regeneration scheme All in accordance with the executed NEC Engineering & Construct Contract,21/12/2022,0174572,"88,421.81",Capital,Robertson CE Limited,81176,,
Chorley Borough Council,http://statistics.data.gov.uk/id/local-authority/30UE,Capital,Capital,GROW - Commercial & Property,Main Contractor,03007,Capital Expenditure,Capital,Delivery of the Tatton Gardens Development,21/12/2022,0174572,"116,819.81",Capital,Robertson CE Limited,81176,,
Chorley Borough Council,http://statistics.data.gov.uk/id/local-authority/30UE,Business Support,1095,GROW - Commercial & Property,Security Service,40062,Services,5027,"To provide site concierge services at Primrose Gardens Extra Care facility, hours as outlined by the premises manager. ",02/12/2022,0173766,"7,213.95",Revenue,Secure FM Ltd,86928,,
Chorley Borough Council,http://statistics.data.gov.uk/id/local-authority/30UE,Homelessness,1075,GROW - Commercial & Property,Security Service,40062,Services,5027,"To provide site concierge services at Cotswold House temporary accommodation facility, hours as outlined",02/12/2022,0173767,"7,213.95",Revenue,Secure FM Ltd,86928,,
Chorley Borough Council,http://statistics.data.gov.uk/id/local-authority/30UE,Homelessness,1075,GROW - Commercial & Property,Service Fees,40056,Services,5027,To provide additional Winter Watch Security at Cotswold House as discussed,14/12/2022,0174596,"4,151.25",Revenue,Secure FM Ltd,86928,,
Chorley Borough Council,http://statistics.data.gov.uk/id/local-authority/30UE,Homelessness,1075,GROW - Commercial & Property,Security Service,40062,Services,5027,"To provide site concierge services at Cotswold House temporary accommodation facility, hours as outlined  ",14/12/2022,0174597,"6,927.98",Revenue,Secure FM Ltd,86928,,
Chorley Borough Council,http://statistics.data.gov.uk/id/local-authority/30UE,Business Support,1095,GROW - Commercial & Property,Security Service,40062,Services,5027,"To provide evening Site Security Services at Market Walk Shopping Centre from 5pm until midnight, 7 days a week.",21/12/2022,0174722,"2,496.90",Revenue,Secure FM Ltd,86928,,
Chorley Borough Council,http://statistics.data.gov.uk/id/local-authority/30UE,Business Support,1095,GROW - Commercial & Property,Security Service,40062,Services,5027,"To provide site concierge services at Primrose Gardens Extra Care facility, hours as outlined by the premises manager.",21/12/2022,0174723,"6,826.50",Revenue,Secure FM Ltd,86928,,
Chorley Borough Council,http://statistics.data.gov.uk/id/local-authority/30UE,Central Support Services,1009,GOVN - Policy & Governance,Uniforms,40039,"Clothing, Uniforms and Laundry",5025, HELLY HANSEN MANCHESTER LOW SAFETY TRAINER ORCA FS430 COMPOSITE W/P SAFETY BOOT BLACK SZ10 ,21/12/2022,0173869,728.20,Revenue,Smart Image Workwear,21064,,
Chorley Borough Council,http://statistics.data.gov.uk/id/local-authority/30UE,Central Support Services,1009,GOVN - Policy & Governance,Lone Working System,40097,Communication and Computing,5028,Solo Protect Service Charge - Invoice 1489308,21/12/2022,0174406,500.80,Revenue,SoloProtect Ltd,76206,,
Chorley Borough Council,http://statistics.data.gov.uk/id/local-authority/30UE,Central Support Services,1009,GOVN - Policy & Governance,Lone Working System,40097,Communication and Computing,5028,Service Charges - Invoice 150490,21/12/2022,0174542,500.80,Revenue,SoloProtect Ltd,76206,,
Chorley Borough Council,http://statistics.data.gov.uk/id/local-authority/30UE,Public Transport,1067,GOVN - Policy & Governance,Bus Shelters -Maintenance,20062,Grounds Maintenance Costs,5013,"Bus Shelter Damage, Liverpool Road. Insurers paid the incorrect council should have been issued to SRBC, ",02/12/2022,0173494,"5,334.77",Revenue,South Ribble Borough Council,17889,,
Chorley Borough Council,http://statistics.data.gov.uk/id/local-authority/30UE,Central Support Services,1009,GOVN - Policy & Governance,Service Fees to other Local Authorities,40076,Services,5027,Quarter 2 Recharges 22/23,02/12/2022,0174245,"683,468.92",Revenue,South Ribble Borough Council,17889,,
Chorley Borough Council,http://statistics.data.gov.uk/id/local-authority/30UE,Business Support,1095,GROW - Commercial & Property,Window Cleaning,20034,Cleaning and Domestic Supplies,5012,Quarterly window cleaning (4th November 2022),21/12/2022,0174187,374.00,Revenue,Sparkle Window Cleaning (Michael Jennings),77989,,
Chorley Borough Council,http://statistics.data.gov.uk/id/local-authority/30UE,Business Support,1095,GROW - Commercial & Property,Window Cleaning,20034,Cleaning and Domestic Supplies,5012,For the window cleaning services and quarterly internal cleans at Primrose gardens,21/12/2022,0174307,477.95,Revenue,Sparkle Window Cleaning (Michael Jennings),77989,,
Chorley Borough Council,http://statistics.data.gov.uk/id/local-authority/30UE,Corporate Management,1008,EARL - Communities,Other Contributions,40145,Grants and Subscriptions,5031,Delivery of support for residents experiencing financial hardship,02/12/2022,0173072,"1,000.00",Revenue,St Laurence`s PCC,17814,,
Chorley Borough Council,http://statistics.data.gov.uk/id/local-authority/30UE,Capital,Capital,EARL - Communities,Grants,03002,Capital Expenditure,Capital,ADDRESS REDACTED,21/12/2022,0174766,"3,104.00",Capital,Stannah Lift Services Ltd,80943,,
Chorley Borough Council,http://statistics.data.gov.uk/id/local-authority/30UE,Capital,Capital,EARL - Communities,Grants,03002,Capital Expenditure,Capital,ADDRESS REDACTED,21/12/2022,0174770,"2,998.00",Capital,Stannah Lift Services Ltd,80943,,
Chorley Borough Council,http://statistics.data.gov.uk/id/local-authority/30UE,Capital,Capital,GOVN - Policy & Governance,Architects Fees,03022,Capital Expenditure,Capital,"Quotation for the Provision of Mechanical, Electrical and Plumbing Services",21/12/2022,0173771,"1,706.00",Capital,Steven A Hunt & Associates Ltd,80511,,
Chorley Borough Council,http://statistics.data.gov.uk/id/local-authority/30UE,Parking Services,1066,GROW - Commercial & Property,Signs:Provision & Maintenance,20065,Grounds Maintenance Costs,5013,Supply & fix All Seasons height barrier warning sign,02/12/2022,0174241,356.00,Revenue,Street Civil Engineering Limited,76750,,
Chorley Borough Council,http://statistics.data.gov.uk/id/local-authority/30UE,Parking Services,1066,GROW - Commercial & Property,Signs:Provision & Maintenance,20065,Grounds Maintenance Costs,5013,"Re Cleveland St overflow car park height barrier signsTake down, repair & re-erect 2 damaged barrier signs",02/12/2022,0174398,320.00,Revenue,Street Civil Engineering Limited,76750,,
Chorley Borough Council,http://statistics.data.gov.uk/id/local-authority/30UE,Parking Services,1066,GROW - Commercial & Property,Signs:Provision & Maintenance,20065,Grounds Maintenance Costs,5013,"To supply various car park signs to comply with TSRGD (Flat Iron, Hollinshead St, Queens Rd)",02/12/2022,0174399,653.50,Revenue,Street Civil Engineering Limited,76750,,
Chorley Borough Council,http://statistics.data.gov.uk/id/local-authority/30UE,Parking Services,1066,GROW - Commercial & Property,Signs:Provision & Maintenance,20065,Grounds Maintenance Costs,5013,P & D signage on Queens Rd car park requires taking down and re-erecting in correct position. ,02/12/2022,0174399,150.00,Revenue,Street Civil Engineering Limited,76750,,
Chorley Borough Council,http://statistics.data.gov.uk/id/local-authority/30UE,Parking Services,1066,GROW - Commercial & Property,Signs:Provision & Maintenance,20065,Grounds Maintenance Costs,5013,All Seasons height barrier sign replacement Take down sign assembly to tip Provide & erect new assembly ,21/12/2022,0174831,435.00,Revenue,Street Civil Engineering Limited,76750,,
Chorley Borough Council,http://statistics.data.gov.uk/id/local-authority/30UE,Capital,Capital,EARL - Communities,Grants,03002,Capital Expenditure,Capital,ADDRESS REDACTED,02/12/2022,0174320,"9,020.00",Capital,Stringfellow Bldg Cntrctrs Ltd,17893,,
Chorley Borough Council,http://statistics.data.gov.uk/id/local-authority/30UE,Capital,Capital,GROW - Commercial & Property,Purchase Of Vehicles & Plant,03013,Capital Expenditure,Capital,Primrose Caf� Works Works as agreed with Primrose/Caf� and Surveyor NAME REDACTED,14/12/2022,0174566,"1,009.14",Capital,Stringfellow Bldg Cntrctrs Ltd,17893,,
Chorley Borough Council,http://statistics.data.gov.uk/id/local-authority/30UE,Central Support Services,1009,GROW - Commercial & Property,General Repairs - Reactive,20004,Repairs Maintenance & Alts,5005,Fencing To The Rear Of The Copse/Lower Burgh way fit only new posts and fix existing fence to them,14/12/2022,0174670,"2,300.00",Revenue,Stringfellow Bldg Cntrctrs Ltd,17893,,
Chorley Borough Council,http://statistics.data.gov.uk/id/local-authority/30UE,Central Support Services,1009,GROW - Commercial & Property,General Repairs - Reactive,20004,Repairs Maintenance & Alts,5005,Housing - reactive repairs,14/12/2022,0174720,"2,013.63",Revenue,Stringfellow Bldg Cntrctrs Ltd,17893,,
Chorley Borough Council,http://statistics.data.gov.uk/id/local-authority/30UE,Central Support Services,1009,GROW - Commercial & Property,General Repairs - Reactive,20004,Repairs Maintenance & Alts,5005,Housing - reactive repairs,14/12/2022,0174721,"1,312.49",Revenue,Stringfellow Bldg Cntrctrs Ltd,17893,,
Chorley Borough Council,http://statistics.data.gov.uk/id/local-authority/30UE,Capital,Capital,GROW - Commercial & Property,Other Contractor,03012,Capital Expenditure,Capital,Unit 4B Market Walk Extension Final Invoice for storeroom works as per PRD067821 (Inv 15032) which was closed accidentally,14/12/2022,0174753,"1,000.00",Capital,Stringfellow Bldg Cntrctrs Ltd,17893,,
Chorley Borough Council,http://statistics.data.gov.uk/id/local-authority/30UE,Capital,Capital,EARL - Communities,Grants,03002,Capital Expenditure,Capital,ADDRESS REDACTED,21/12/2022,0174768,"7,283.00",Capital,Stringfellow Bldg Cntrctrs Ltd,17893,,
Chorley Borough Council,http://statistics.data.gov.uk/id/local-authority/30UE,Capital,Capital,EARL - Communities,Grants,03002,Capital Expenditure,Capital,ADDRESS REDACTED,21/12/2022,0174769,"5,600.00",Capital,Stringfellow Bldg Cntrctrs Ltd,17893,,
Chorley Borough Council,http://statistics.data.gov.uk/id/local-authority/30UE,Central Support Services,1009,GROW - Commercial & Property,General Repairs - Reactive,20004,Repairs Maintenance & Alts,5005,Primrose - reactive repairs,21/12/2022,0174800,307.89,Revenue,Stringfellow Bldg Cntrctrs Ltd,17893,,
Chorley Borough Council,http://statistics.data.gov.uk/id/local-authority/30UE,Central Support Services,1009,CUST - Customer & Digital,Refuse Collection,20037,Cleaning and Domestic Supplies,5012,"Trade waste collections TOWN HALL, General waste 2022.2023",07/12/2022,0172854,113.01,Revenue,SUEZ R&R UK LTD,17615,,
Chorley Borough Council,http://statistics.data.gov.uk/id/local-authority/30UE,Central Support Services,1009,CUST - Customer & Digital,Refuse Collection,20037,Cleaning and Domestic Supplies,5012,Trade waste collections TOWN HALL MIXED REC 2022.2023,07/12/2022,0172854,22.01,Revenue,SUEZ R&R UK LTD,17615,,
Chorley Borough Council,http://statistics.data.gov.uk/id/local-authority/30UE,Central Support Services,1009,CUST - Customer & Digital,Refuse Collection,20037,Cleaning and Domestic Supplies,5012,"Trade waste Collections, Civic Offices, General Waste 2022.2023",07/12/2022,0172854,226.03,Revenue,SUEZ R&R UK LTD,17615,,
Chorley Borough Council,http://statistics.data.gov.uk/id/local-authority/30UE,Central Support Services,1009,CUST - Customer & Digital,Refuse Collection,20037,Cleaning and Domestic Supplies,5012,"Trade waste Collections, Civic Offices, Mixed Recycling 2022.2023",07/12/2022,0172854,22.01,Revenue,SUEZ R&R UK LTD,17615,,
Chorley Borough Council,http://statistics.data.gov.uk/id/local-authority/30UE,Culture & Heritage,1036,CUST - Customer & Digital,Refuse Collection,20037,Cleaning and Domestic Supplies,5012,"Trade waste Collections, Astley Hall, General Waste 2022.2023",07/12/2022,0172854,37.67,Revenue,SUEZ R&R UK LTD,17615,,
Chorley Borough Council,http://statistics.data.gov.uk/id/local-authority/30UE,Community Development,1097,CUST - Customer & Digital,Refuse Collection,20037,Cleaning and Domestic Supplies,5012,"Trade waste Collections, MPs Constituency Offices, General Waste 2022.2023",07/12/2022,0172854,37.67,Revenue,SUEZ R&R UK LTD,17615,,
Chorley Borough Council,http://statistics.data.gov.uk/id/local-authority/30UE,Recreation & Sport,1037,CUST - Customer & Digital,Refuse Collection,20037,Cleaning and Domestic Supplies,5012,"Trade waste Collections, Eaves Green Community Centre, General Waste 2022.2023",07/12/2022,0172854,20.49,Revenue,SUEZ R&R UK LTD,17615,,
Chorley Borough Council,http://statistics.data.gov.uk/id/local-authority/30UE,Recreation & Sport,1037,CUST - Customer & Digital,Refuse Collection,20037,Cleaning and Domestic Supplies,5012,"Trade waste Collections, Astley Village Community Centre, General Waste 2022.2023",07/12/2022,0172854,20.49,Revenue,SUEZ R&R UK LTD,17615,,
Chorley Borough Council,http://statistics.data.gov.uk/id/local-authority/30UE,Recreation & Sport,1037,CUST - Customer & Digital,Misc Expenses,40200,Miscellaneous Expenses,5034,"Trade waste Collections, Buttermere Green Community Centre, General Waste 2022.2023",07/12/2022,0172854,20.49,Revenue,SUEZ R&R UK LTD,17615,,
Chorley Borough Council,http://statistics.data.gov.uk/id/local-authority/30UE,Recreation & Sport,1037,CUST - Customer & Digital,Misc Expenses,40200,Miscellaneous Expenses,5034,"Trade waste Collections, Lancaster Way Community Centre, General Waste 2022.2023",07/12/2022,0172854,20.49,Revenue,SUEZ R&R UK LTD,17615,,
Chorley Borough Council,http://statistics.data.gov.uk/id/local-authority/30UE,Recreation & Sport,1037,CUST - Customer & Digital,Refuse Collection,20037,Cleaning and Domestic Supplies,5012,"Trade waste Collections, Tatton Community Centre, General Waste 2022.2023",07/12/2022,0172854,20.49,Revenue,SUEZ R&R UK LTD,17615,,
Chorley Borough Council,http://statistics.data.gov.uk/id/local-authority/30UE,Recreation & Sport,1037,CUST - Customer & Digital,Refuse Collection,20037,Cleaning and Domestic Supplies,5012,"Trade waste Collections, Clayton Brook Village Hall, General Waste 2022.2023",07/12/2022,0172854,24.80,Revenue,SUEZ R&R UK LTD,17615,,
Chorley Borough Council,http://statistics.data.gov.uk/id/local-authority/30UE,Business Support,1095,CUST - Customer & Digital,Refuse Collection,20037,Cleaning and Domestic Supplies,5012,"Trade waste collections, Strawberry Fields Digital Hub General waste 2022.2023",07/12/2022,0172854,113.01,Revenue,SUEZ R&R UK LTD,17615,,
Chorley Borough Council,http://statistics.data.gov.uk/id/local-authority/30UE,Business Support,1095,CUST - Customer & Digital,Refuse Collection,20037,Cleaning and Domestic Supplies,5012,"Trade waste collections, Strawberry Fields Digital Hub, Mixed Recycling 2022.2023",07/12/2022,0172854,66.03,Revenue,SUEZ R&R UK LTD,17615,,
Chorley Borough Council,http://statistics.data.gov.uk/id/local-authority/30UE,Service Management & Support,1009,CUST - Customer & Digital,Refuse Collection,20037,Cleaning and Domestic Supplies,5012,Exchange 20 yard Street Sweeping Skip to cover period  01/04/2022 - 31/03/2023,21/12/2022,0173751,"1,700.16",Revenue,SUEZ R&R UK LTD,17615,,
Chorley Borough Council,http://statistics.data.gov.uk/id/local-authority/30UE,Service Management & Support,1009,CUST - Customer & Digital,Refuse Collection,20037,Cleaning and Domestic Supplies,5012,Exchange 35 yard General Waste Skip to cover period  01/04/2022 - 31/03/2023,21/12/2022,0173751,809.46,Revenue,SUEZ R&R UK LTD,17615,,
Chorley Borough Council,http://statistics.data.gov.uk/id/local-authority/30UE,Service Management & Support,1009,CUST - Customer & Digital,Refuse Collection,20037,Cleaning and Domestic Supplies,5012,Exchange 35 yard Green Waste skip to cover period 01/04/2022- 31/03/2023,21/12/2022,0173751,168.52,Revenue,SUEZ R&R UK LTD,17615,,
Chorley Borough Council,http://statistics.data.gov.uk/id/local-authority/30UE,Service Management & Support,1009,CUST - Customer & Digital,Refuse Collection,20037,Cleaning and Domestic Supplies,5012,Disposal charge and processing of Green Waste ,21/12/2022,0173751,280.50,Revenue,SUEZ R&R UK LTD,17615,,
Chorley Borough Council,http://statistics.data.gov.uk/id/local-authority/30UE,Central Support Services,1009,CUST - Customer & Digital,Refuse Collection,20037,Cleaning and Domestic Supplies,5012,"Trade waste collections TOWN HALL, General waste 2022.2023",07/12/2022,0173845,113.01,Revenue,SUEZ R&R UK LTD,17615,,
Chorley Borough Council,http://statistics.data.gov.uk/id/local-authority/30UE,Central Support Services,1009,CUST - Customer & Digital,Refuse Collection,20037,Cleaning and Domestic Supplies,5012,Trade waste collections TOWN HALL MIXED REC 2022.2023,07/12/2022,0173845,22.01,Revenue,SUEZ R&R UK LTD,17615,,
Chorley Borough Council,http://statistics.data.gov.uk/id/local-authority/30UE,Central Support Services,1009,CUST - Customer & Digital,Refuse Collection,20037,Cleaning and Domestic Supplies,5012,"Trade waste Collections, Civic Offices, General Waste 2022.2023",07/12/2022,0173845,226.03,Revenue,SUEZ R&R UK LTD,17615,,
Chorley Borough Council,http://statistics.data.gov.uk/id/local-authority/30UE,Central Support Services,1009,CUST - Customer & Digital,Refuse Collection,20037,Cleaning and Domestic Supplies,5012,"Trade waste Collections, Civic Offices, Mixed Recycling 2022.2023",07/12/2022,0173845,22.01,Revenue,SUEZ R&R UK LTD,17615,,
Chorley Borough Council,http://statistics.data.gov.uk/id/local-authority/30UE,Culture & Heritage,1036,CUST - Customer & Digital,Refuse Collection,20037,Cleaning and Domestic Supplies,5012,"Trade waste Collections, Astley Hall, General Waste 2022.2023",07/12/2022,0173845,37.67,Revenue,SUEZ R&R UK LTD,17615,,
Chorley Borough Council,http://statistics.data.gov.uk/id/local-authority/30UE,Community Development,1097,CUST - Customer & Digital,Refuse Collection,20037,Cleaning and Domestic Supplies,5012,"Trade waste Collections, MPs Constituency Offices, General Waste 2022.2023",07/12/2022,0173845,37.67,Revenue,SUEZ R&R UK LTD,17615,,
Chorley Borough Council,http://statistics.data.gov.uk/id/local-authority/30UE,Recreation & Sport,1037,CUST - Customer & Digital,Refuse Collection,20037,Cleaning and Domestic Supplies,5012,"Trade waste Collections, Eaves Green Community Centre, General Waste 2022.2023",07/12/2022,0173845,20.49,Revenue,SUEZ R&R UK LTD,17615,,
Chorley Borough Council,http://statistics.data.gov.uk/id/local-authority/30UE,Recreation & Sport,1037,CUST - Customer & Digital,Refuse Collection,20037,Cleaning and Domestic Supplies,5012,"Trade waste Collections, Astley Village Community Centre, General Waste 2022.2023",07/12/2022,0173845,20.49,Revenue,SUEZ R&R UK LTD,17615,,
Chorley Borough Council,http://statistics.data.gov.uk/id/local-authority/30UE,Recreation & Sport,1037,CUST - Customer & Digital,Misc Expenses,40200,Miscellaneous Expenses,5034,"Trade waste Collections, Buttermere Green Community Centre, General Waste 2022.2023",07/12/2022,0173845,20.49,Revenue,SUEZ R&R UK LTD,17615,,
Chorley Borough Council,http://statistics.data.gov.uk/id/local-authority/30UE,Recreation & Sport,1037,CUST - Customer & Digital,Misc Expenses,40200,Miscellaneous Expenses,5034,"Trade waste Collections, Lancaster Way Community Centre, General Waste 2022.2023",07/12/2022,0173845,20.49,Revenue,SUEZ R&R UK LTD,17615,,
Chorley Borough Council,http://statistics.data.gov.uk/id/local-authority/30UE,Recreation & Sport,1037,CUST - Customer & Digital,Refuse Collection,20037,Cleaning and Domestic Supplies,5012,"Trade waste Collections, Tatton Community Centre, General Waste 2022.2023",07/12/2022,0173845,20.49,Revenue,SUEZ R&R UK LTD,17615,,
Chorley Borough Council,http://statistics.data.gov.uk/id/local-authority/30UE,Recreation & Sport,1037,CUST - Customer & Digital,Refuse Collection,20037,Cleaning and Domestic Supplies,5012,"Trade waste Collections, Clayton Brook Village Hall, General Waste 2022.2023",07/12/2022,0173845,24.80,Revenue,SUEZ R&R UK LTD,17615,,
Chorley Borough Council,http://statistics.data.gov.uk/id/local-authority/30UE,Business Support,1095,CUST - Customer & Digital,Refuse Collection,20037,Cleaning and Domestic Supplies,5012,"Trade waste collections, Strawberry Fields Digital Hub General waste 2022.2023",07/12/2022,0173845,113.01,Revenue,SUEZ R&R UK LTD,17615,,
Chorley Borough Council,http://statistics.data.gov.uk/id/local-authority/30UE,Business Support,1095,CUST - Customer & Digital,Refuse Collection,20037,Cleaning and Domestic Supplies,5012,"Trade waste collections, Strawberry Fields Digital Hub, Mixed Recycling 2022.2023",07/12/2022,0173845,66.03,Revenue,SUEZ R&R UK LTD,17615,,
Chorley Borough Council,http://statistics.data.gov.uk/id/local-authority/30UE,Corporate Management,1008,EARL - Communities,Other Contributions,40145,Grants and Subscriptions,5031,Delivery of support for residents experiencing financial hardship,02/12/2022,0173076,"3,000.00",Revenue,SVP Chorley Buddies,82307,,
Chorley Borough Council,http://statistics.data.gov.uk/id/local-authority/30UE,Unapportionable Central OHeads,1009,GOVN - Policy & Governance,Pensions Increase Act Payments,18005,Indirect Employee Expenses,5002,rechargible pension 2022/23,02/12/2022,0174317,"2,990.10",Revenue,Tameside MBC-Gmpf,17034,,
Chorley Borough Council,http://statistics.data.gov.uk/id/local-authority/30UE,Central Support Services,1009,CUST - Customer & Digital,CCTV Camera Maintenance,40007,"Equipment, Furniture & Materia",5023,cctv,21/12/2022,0174569,427.50,Revenue,Technology Solutions,72376,,
Chorley Borough Council,http://statistics.data.gov.uk/id/local-authority/30UE,Elections,1012,GOVN - Policy & Governance,Training Course Fees,17010,Indirect Employee Expenses,5002,NAME REDACTED - AEA courses The Verification & Count -  Absent Voting  -  Elections,02/12/2022,0174186,666.00,Revenue,The Association Of Electoral Administrators,16344,,
Chorley Borough Council,http://statistics.data.gov.uk/id/local-authority/30UE,Business Support,1095,GROW - Commercial & Property,Security Service,40062,Services,5027,Eviction of travelers,07/12/2022,0174489,"1,250.00",Revenue,The ExcluSec Group Ltd,78056,,
Chorley Borough Council,http://statistics.data.gov.uk/id/local-authority/30UE,Business Support,1095,GROW - Commercial & Property,Legal Fees,40171,Miscellaneous Expenses,5034,For eviction of travellers from Strawberry Meadows28.11.22,14/12/2022,0174571,"1,850.00",Revenue,The ExcluSec Group Ltd,78056,,
Chorley Borough Council,http://statistics.data.gov.uk/id/local-authority/30UE,Central Support Services,1009,CUST - Customer & Digital,Internet Charges,40104,Communication and Computing,5028,"Resilient Internet Route 1: Chorley Town Hall, PR7 1DP Install 2/10Gb Internet service, 3 year minimum term at Chorley ",07/12/2022,0172847,"3,645.89",Revenue,The Networking People (NorthWest) Ltd T/a TNP Ltd,73446,,
Chorley Borough Council,http://statistics.data.gov.uk/id/local-authority/30UE,Central Support Services,1009,CUST - Customer & Digital,Computer - Support Services,40111,Communication and Computing,5028,Professional services BoM Validation and Fibre Survey - Low Level Design for Switching and Security - TNP Project Management ,07/12/2022,0172859,"4,875.00",Revenue,The Networking People (NorthWest) Ltd T/a TNP Ltd,73446,,
Chorley Borough Council,http://statistics.data.gov.uk/id/local-authority/30UE,Central Support Services,1009,CUST - Customer & Digital,Internet Charges,40104,Communication and Computing,5028,"Resilient Internet Route 1: Chorley Town Hall, PR7 1DP Install 2/10Gb Internet service, 3 year minimum term at Chorley ",07/12/2022,0172964,"3,612.65",Revenue,The Networking People (NorthWest) Ltd T/a TNP Ltd,73446,,
Chorley Borough Council,http://statistics.data.gov.uk/id/local-authority/30UE,Central Support Services,1009,CUST - Customer & Digital,Internet Charges,40104,Communication and Computing,5028,"Resilient Internet Route 1: Chorley Town Hall, PR7 1DP Install 2/10Gb Internet service, 3 year minimum term at Chorley ",07/12/2022,0172965,"19,484.79",Revenue,The Networking People (NorthWest) Ltd T/a TNP Ltd,73446,,
Chorley Borough Council,http://statistics.data.gov.uk/id/local-authority/30UE,Central Support Services,1009,CUST - Customer & Digital,Computer Software-Purchase,40100,Communication and Computing,5028,"Chorley and SRBC Switching wireless hardware, software support and licensing.",07/12/2022,0173019,"29,850.28",Revenue,The Networking People (NorthWest) Ltd T/a TNP Ltd,73446,,
Chorley Borough Council,http://statistics.data.gov.uk/id/local-authority/30UE,Central Support Services,1009,CUST - Customer & Digital,External Contractor,40198,Miscellaneous Expenses,5034,Tatton Gardens 1GB R02 Route 1 Route 2 CH Satellite site Fortinet Equipment,07/12/2022,0173320,"13,329.00",Revenue,The Networking People (NorthWest) Ltd T/a TNP Ltd,73446,,
Chorley Borough Council,http://statistics.data.gov.uk/id/local-authority/30UE,Central Support Services,1009,CUST - Customer & Digital,Computer - Support Services,40111,Communication and Computing,5028,Professional services BoM Validation and Fibre Survey - Low Level Design for Switching and Security - TNP Project Management ,07/12/2022,0173870,"7,800.00",Revenue,The Networking People (NorthWest) Ltd T/a TNP Ltd,73446,,
Chorley Borough Council,http://statistics.data.gov.uk/id/local-authority/30UE,Central Support Services,1009,CUST - Customer & Digital,External Contractor,40198,Miscellaneous Expenses,5034,Tatton Gardens 1GB R02 Route 1 Route 2 CH Satellite site Fortinet Equipment,14/12/2022,0174540,"1,015.67",Revenue,The Networking People (NorthWest) Ltd T/a TNP Ltd,73446,,
Chorley Borough Council,http://statistics.data.gov.uk/id/local-authority/30UE,Central Support Services,1009,CUST - Customer & Digital,Computer Software-Maintenance,40107,Communication and Computing,5028,Professional Service Day NAME REDACTED to survey Astley Hall integration to the corporate dark fibre network,14/12/2022,0174576,725.00,Revenue,The Networking People (NorthWest) Ltd T/a TNP Ltd,73446,,
Chorley Borough Council,http://statistics.data.gov.uk/id/local-authority/30UE,Central Support Services,1009,CUST - Customer & Digital,Computer - Support Services,40111,Communication and Computing,5028,Professional services BoM Validation and Fibre Survey - Low Level Design for Switching and Security - TNP Project Management ,21/12/2022,0174601,"2,600.00",Revenue,The Networking People (NorthWest) Ltd T/a TNP Ltd,73446,,
Chorley Borough Council,http://statistics.data.gov.uk/id/local-authority/30UE,Central Support Services,1009,GROW - Commercial & Property,Agency Staff,13000,Direct Employee Expenses,5001,Estate surveyor fees for NAME REDACTED,07/12/2022,0174036,"2,142.00",Revenue,The Oyster Partnership Ltd,81409,,
Chorley Borough Council,http://statistics.data.gov.uk/id/local-authority/30UE,Central Support Services,1009,GROW - Commercial & Property,Agency Staff,13000,Direct Employee Expenses,5001,Estate surveyor fees for NAME REDACTED,07/12/2022,0174096,"1,449.90",Revenue,The Oyster Partnership Ltd,81409,,
Chorley Borough Council,http://statistics.data.gov.uk/id/local-authority/30UE,Central Support Services,1009,GROW - Commercial & Property,Agency Staff,13000,Direct Employee Expenses,5001,Estate surveyor fees for NAME REDACTED,07/12/2022,0174104,"1,812.00",Revenue,The Oyster Partnership Ltd,81409,,
Chorley Borough Council,http://statistics.data.gov.uk/id/local-authority/30UE,Central Support Services,1009,GROW - Commercial & Property,Agency Staff,13000,Direct Employee Expenses,5001,Estate surveyor fees for NAME REDACTED,07/12/2022,0174105,"2,132.25",Revenue,The Oyster Partnership Ltd,81409,,
Chorley Borough Council,http://statistics.data.gov.uk/id/local-authority/30UE,Central Support Services,1009,GROW - Commercial & Property,Agency Staff,13000,Direct Employee Expenses,5001,Estate surveyor fees for NAME REDACTED,07/12/2022,0174106,"1,665.15",Revenue,The Oyster Partnership Ltd,81409,,
Chorley Borough Council,http://statistics.data.gov.uk/id/local-authority/30UE,Central Support Services,1009,GROW - Commercial & Property,Agency Staff,13000,Direct Employee Expenses,5001,Estate surveyor fees for NAME REDACTED,07/12/2022,0174107,"2,033.85",Revenue,The Oyster Partnership Ltd,81409,,
Chorley Borough Council,http://statistics.data.gov.uk/id/local-authority/30UE,Central Support Services,1009,GROW - Commercial & Property,Planned Maintenance,20006,Repairs Maintenance & Alts,5005,Tatton Gardens Outdoor Post Installation Inspection - Revisit,14/12/2022,0174564,255.00,Revenue,The Play Inspection Company,20632,,
Chorley Borough Council,http://statistics.data.gov.uk/id/local-authority/30UE,Tourism,1039,GOVN - Policy & Governance,Publicity - Advertising,40157,Miscellaneous Expenses,5034,"Winter Wonderland posters, various sizes - A1, Town Hall size, A2, A4, plus A5 flyers for Winter Wonderland",07/12/2022,0174528,400.50,Revenue,The Print Quarter,17987,,
Chorley Borough Council,http://statistics.data.gov.uk/id/local-authority/30UE,Elections,1012,GOVN - Policy & Governance,Publications,40054,"Printing, Stationery & General",5026,Schofields Election Law updated 67,14/12/2022,0174538,314.00,Revenue,Thomson Reuters RE;Sweet & Maxwell Limited,17932,,
Chorley Borough Council,http://statistics.data.gov.uk/id/local-authority/30UE,Business Support,1095,GROW - Commercial & Property,Christmas Tree / Decorations,40178,Miscellaneous Expenses,5034,Christmas tree lights & Fitting service ,02/12/2022,0173757,296.00,Revenue,Town Centre Trees,57436,,
Chorley Borough Council,http://statistics.data.gov.uk/id/local-authority/30UE,Central Support Services,1009,GROW - Commercial & Property,Professional Fees,40063,Services,5027,Development and Commercial Management (Stage 1) - Charnock Richard Garden Village,02/12/2022,0174020,"10,000.00",Revenue,Trebbi Continuum,77723,,
Chorley Borough Council,http://statistics.data.gov.uk/id/local-authority/30UE,Central Support Services,1009,GROW - Commercial & Property,Professional Fees,40063,Services,5027,Development and Commercial Management (Stage 2) - Charnock Richard Garden Village,02/12/2022,0174021,"10,725.00",Revenue,Trebbi Continuum,77723,,
Chorley Borough Council,http://statistics.data.gov.uk/id/local-authority/30UE,Corporate Management,1008,GROW - Commercial & Property,Professional Fees,14011,Direct Employee Expenses,5001,Brownfield Land Release Fund - Support with developing funding bid,02/12/2022,0174022,"1,400.00",Revenue,Trebbi Continuum,77723,,
Chorley Borough Council,http://statistics.data.gov.uk/id/local-authority/30UE,Corporate Management,1008,GROW - Commercial & Property,Professional Fees,14011,Direct Employee Expenses,5001,Levelling Up Fund - Chorley Council,02/12/2022,0174023,"5,000.00",Revenue,Trebbi Continuum,77723,,
Chorley Borough Council,http://statistics.data.gov.uk/id/local-authority/30UE,Central Support Services,1009,GROW - Commercial & Property,Professional Fees,40063,Services,5027,Development and Commercial Management (Stage 1) - Charnock Richard Garden Village,02/12/2022,0174024,"8,000.00",Revenue,Trebbi Continuum,77723,,
Chorley Borough Council,http://statistics.data.gov.uk/id/local-authority/30UE,Central Support Services,1009,GROW - Commercial & Property,Professional Fees,40063,Services,5027,Development and Commercial Management (Stage 1) - Charnock Richard Garden Village,02/12/2022,0174025,"6,750.00",Revenue,Trebbi Continuum,77723,,
Chorley Borough Council,http://statistics.data.gov.uk/id/local-authority/30UE,Central Support Services,1009,GROW - Commercial & Property,Professional Fees,40063,Services,5027,Development and Commercial Management (Stage 2) - Charnock Richard Garden Village,02/12/2022,0174026,"3,000.00",Revenue,Trebbi Continuum,77723,,
Chorley Borough Council,http://statistics.data.gov.uk/id/local-authority/30UE,Corporate Management,1008,GROW - Commercial & Property,Professional Fees,14011,Direct Employee Expenses,5001,Runshaw College Appraisal,21/12/2022,0174027,"1,000.00",Revenue,Trebbi Continuum,77723,,
Chorley Borough Council,http://statistics.data.gov.uk/id/local-authority/30UE,Service Management & Support,1009,CUST - Customer & Digital,Grounds Maintenance Contractor,20043,Grounds Maintenance Costs,5013,Treexpert invoice 108,14/12/2022,0173886,"2,840.00",Revenue,Treexpert Tree Care,78580,,
Chorley Borough Council,http://statistics.data.gov.uk/id/local-authority/30UE,Service Management & Support,1009,CUST - Customer & Digital,Grounds Maintenance Contractor,20043,Grounds Maintenance Costs,5013,,14/12/2022,0173886,240.00,Revenue,Treexpert Tree Care,78580,,
Chorley Borough Council,http://statistics.data.gov.uk/id/local-authority/30UE,Service Management & Support,1009,CUST - Customer & Digital,Grounds Maintenance Contractor,20043,Grounds Maintenance Costs,5013,Tree Expert invoice 0110,14/12/2022,0174470,"1,210.00",Revenue,Treexpert Tree Care,78580,,
Chorley Borough Council,http://statistics.data.gov.uk/id/local-authority/30UE,Service Management & Support,1009,CUST - Customer & Digital,Tools & Equipment - Maintenance,40005,"Equipment, Furniture & Materia",5023,Maintenance Contract CF00336 CHORLEY BOROUGH COUNCIL PR7 1SA,02/12/2022,0174259,"1,969.83",Revenue,TSG UK Solutions Ltd,81173,,
Chorley Borough Council,http://statistics.data.gov.uk/id/local-authority/30UE,Service Management & Support,1009,CUST - Customer & Digital,Tools & Equipment - Maintenance,40005,"Equipment, Furniture & Materia",5023,"Bulldog Plastic Fan Rake, 23 plastic tines, 48`` ash handle- Quantity x 6 Tudor Bypass Compound Lopper, 28``- ",14/12/2022,0174492,260.87,Revenue,Tudor (UK) Limited t/a Tudor Environmental,78888,,
Chorley Borough Council,http://statistics.data.gov.uk/id/local-authority/30UE,Elections,1012,GOVN - Policy & Governance,Tools & Equipment - Maintenance,40005,"Equipment, Furniture & Materia",5023,Annual maintenance of Mailpost 123 Letter Opener 6/12/2022   -  05/12/2023,02/12/2022,0174309,433.59,Revenue,Twofold Ltd,77795,,
Chorley Borough Council,http://statistics.data.gov.uk/id/local-authority/30UE,Central Support Services,1009,GOVN - Policy & Governance,Misc Expenses,40200,Miscellaneous Expenses,5034,01 december 2022,21/12/2022,0174715,"1,426.00",Revenue,UK Healthcare (BDHSC),17241,,
Chorley Borough Council,http://statistics.data.gov.uk/id/local-authority/30UE,Tourism,1039,GOVN - Policy & Governance,External Contractor,40198,Miscellaneous Expenses,5034,Chorley Christmas Light Switch On Event - Equipment - Lighting - Event Crew - Productions Manager - Sound Engineer - Lighting,21/12/2022,0174401,"11,955.00",Revenue,UK Media and Events Limited,71221,,
Chorley Borough Council,http://statistics.data.gov.uk/id/local-authority/30UE,Tourism,1039,GOVN - Policy & Governance,External Contractor,40198,Miscellaneous Expenses,5034,Chorley Christmas Light Switch On - Sunday 20 November 2022 Modular Screen & Effect Lighting - ,02/12/2022,0174402,"2,200.00",Revenue,UK Media and Events Limited,71221,,
Chorley Borough Council,http://statistics.data.gov.uk/id/local-authority/30UE,Central Support Services,1009,CUST - Customer & Digital,Postages,40082,Communication and Computing,5028,Daily Hybrid Mail & Annual Billing,21/12/2022,0172788,815.97,Revenue,UKMAIL Ltd (Mail),57758,,
Chorley Borough Council,http://statistics.data.gov.uk/id/local-authority/30UE,Central Support Services,1009,CUST - Customer & Digital,Postages,40082,Communication and Computing,5028,Daily Hybrid Mail & Annual Billing,21/12/2022,0172792,826.42,Revenue,UKMAIL Ltd (Mail),57758,,
Chorley Borough Council,http://statistics.data.gov.uk/id/local-authority/30UE,Central Support Services,1009,CUST - Customer & Digital,Postages,40082,Communication and Computing,5028,Daily Hybrid Mail & Annual Billing,21/12/2022,0173032,563.29,Revenue,UKMAIL Ltd (Mail),57758,,
Chorley Borough Council,http://statistics.data.gov.uk/id/local-authority/30UE,Central Support Services,1009,CUST - Customer & Digital,Postages,40082,Communication and Computing,5028,Daily Hybrid Mail & Annual Billing,21/12/2022,0173707,"1,290.32",Revenue,UKMAIL Ltd (Mail),57758,,
Chorley Borough Council,http://statistics.data.gov.uk/id/local-authority/30UE,Central Support Services,1009,CUST - Customer & Digital,Postages,40082,Communication and Computing,5028,Daily Hybrid Mail & Annual Billing,21/12/2022,0173715,"7,710.00",Revenue,UKMAIL Ltd (Mail),57758,,
Chorley Borough Council,http://statistics.data.gov.uk/id/local-authority/30UE,Central Support Services,1009,CUST - Customer & Digital,Postages,40082,Communication and Computing,5028,Daily Hybrid Mail & Annual Billing,21/12/2022,0173720,923.89,Revenue,UKMAIL Ltd (Mail),57758,,
Chorley Borough Council,http://statistics.data.gov.uk/id/local-authority/30UE,Central Support Services,1009,CUST - Customer & Digital,Postages,40082,Communication and Computing,5028,Daily Hybrid Mail & Annual Billing,21/12/2022,0173841,698.06,Revenue,UKMAIL Ltd (Mail),57758,,
Chorley Borough Council,http://statistics.data.gov.uk/id/local-authority/30UE,Central Support Services,1009,CUST - Customer & Digital,Postages,40082,Communication and Computing,5028,Daily Hybrid Mail & Annual Billing,21/12/2022,0173875,806.22,Revenue,UKMAIL Ltd (Mail),57758,,
Chorley Borough Council,http://statistics.data.gov.uk/id/local-authority/30UE,Central Support Services,1009,CUST - Customer & Digital,Postages,40082,Communication and Computing,5028,Daily Hybrid Mail & Annual Billing,21/12/2022,0174049,"1,106.08",Revenue,UKMAIL Ltd (Mail),57758,,
Chorley Borough Council,http://statistics.data.gov.uk/id/local-authority/30UE,Central Support Services,1009,EARL - Communities,Training Allowance,14005,Direct Employee Expenses,5001,Air Quality CPD,07/12/2022,0174311,"1,325.00",Revenue,University Of The W Of England,17452,,
Chorley Borough Council,http://statistics.data.gov.uk/id/local-authority/30UE,Capital,Capital,EARL - Communities,Grants,03002,Capital Expenditure,Capital,ADDRESS REDACTED,21/12/2022,0174714,"5,665.00",Capital,UPS Building and Maintenance Ltd,76235,,
Chorley Borough Council,http://statistics.data.gov.uk/id/local-authority/30UE,Regulatory Services,1048,PLAN - Planning & Development,"Hackney Badges, Plates Etc.",40023,"Equipment, Furniture & Materia",5023,"Flexiplate, Clear, Size 4F, Type A Adhesive x 4 packs of 50 ",14/12/2022,0174487,583.76,Revenue,VIP-SYSTEM LIMITED,69902,,
Chorley Borough Council,http://statistics.data.gov.uk/id/local-authority/30UE,Regulatory Services,1048,PLAN - Planning & Development,"Hackney Badges, Plates Etc.",40023,"Equipment, Furniture & Materia",5023,Chorley HCV Size 4F unique V5 x1 pack of 50 ,14/12/2022,0174487,138.57,Revenue,VIP-SYSTEM LIMITED,69902,,
Chorley Borough Council,http://statistics.data.gov.uk/id/local-authority/30UE,Regulatory Services,1048,PLAN - Planning & Development,"Hackney Badges, Plates Etc.",40023,"Equipment, Furniture & Materia",5023,Chorley PHV Size 4F unique V5 x 3 packs of 50 ,14/12/2022,0174487,415.71,Revenue,VIP-SYSTEM LIMITED,69902,,
Chorley Borough Council,http://statistics.data.gov.uk/id/local-authority/30UE,Regulatory Services,1048,PLAN - Planning & Development,"Hackney Badges, Plates Etc.",40023,"Equipment, Furniture & Materia",5023,"Harpoon Security Button, Yellow x 12 packs of 50 ",14/12/2022,0174487,189.48,Revenue,VIP-SYSTEM LIMITED,69902,,
Chorley Borough Council,http://statistics.data.gov.uk/id/local-authority/30UE,Regulatory Services,1048,PLAN - Planning & Development,"Hackney Badges, Plates Etc.",40023,"Equipment, Furniture & Materia",5023,"Quick Release Key Only, Clear x 1 pack of 50",14/12/2022,0174487,63.06,Revenue,VIP-SYSTEM LIMITED,69902,,
Chorley Borough Council,http://statistics.data.gov.uk/id/local-authority/30UE,Regulatory Services,1048,PLAN - Planning & Development,"Hackney Badges, Plates Etc.",40023,"Equipment, Furniture & Materia",5023,Chorley HCV Size 2 x 1E Style 3_23_2 x 1 pack of 50 ,14/12/2022,0174487,27.05,Revenue,VIP-SYSTEM LIMITED,69902,,
Chorley Borough Council,http://statistics.data.gov.uk/id/local-authority/30UE,Regulatory Services,1048,PLAN - Planning & Development,"Hackney Badges, Plates Etc.",40023,"Equipment, Furniture & Materia",5023,Chorley PHV Size 2 x 1E Style 3_23_2  x 3 packs of 50 ,14/12/2022,0174487,81.15,Revenue,VIP-SYSTEM LIMITED,69902,,
Chorley Borough Council,http://statistics.data.gov.uk/id/local-authority/30UE,Regulatory Services,1048,PLAN - Planning & Development,"Hackney Badges, Plates Etc.",40023,"Equipment, Furniture & Materia",5023,"platform, Universal, Size 4, Kit x 2 packs of 25 ",14/12/2022,0174487,336.84,Revenue,VIP-SYSTEM LIMITED,69902,,
Chorley Borough Council,http://statistics.data.gov.uk/id/local-authority/30UE,Development Control,1091,PLAN - Planning & Development,Agency Staff,13000,Direct Employee Expenses,5001,Job: Contract work to assist with planning application processing Contractor: NAME REDACTED Time period: Until December ,07/12/2022,0173299,"1,597.50",Revenue,Vivid Resourcing Ltd,76938,,
Chorley Borough Council,http://statistics.data.gov.uk/id/local-authority/30UE,Development Control,1091,PLAN - Planning & Development,Agency Staff,13000,Direct Employee Expenses,5001,Job: Contract work to assist with planning application processing Contractor: NAME REDACTED Time period: Until December ,07/12/2022,0173497,"1,642.50",Revenue,Vivid Resourcing Ltd,76938,,
Chorley Borough Council,http://statistics.data.gov.uk/id/local-authority/30UE,Development Control,1091,PLAN - Planning & Development,Agency Staff,13000,Direct Employee Expenses,5001,Job: Contract work to assist with planning application processing Contractor: NAME REDACTED Time period: Until December ,07/12/2022,0173529,"1,530.00",Revenue,Vivid Resourcing Ltd,76938,,
Chorley Borough Council,http://statistics.data.gov.uk/id/local-authority/30UE,Economic Development,1096,GROW - Commercial & Property,Agency Staff,13000,Direct Employee Expenses,5001,NAME REDACTED Interim Service Lead - Start 12.09.2022 for 6months,07/12/2022,0174038,"4,345.00",Revenue,Vivid Resourcing Ltd,76938,,
Chorley Borough Council,http://statistics.data.gov.uk/id/local-authority/30UE,Central Support Services,1009,GROW - Commercial & Property,Agency Staff,13000,Direct Employee Expenses,5001,Building surveyor fees and mileage for 6 months Housing,02/12/2022,0174039,"2,929.68",Revenue,Vivid Resourcing Ltd,76938,,
Chorley Borough Council,http://statistics.data.gov.uk/id/local-authority/30UE,Central Support Services,1009,GROW - Commercial & Property,Agency Staff,13000,Direct Employee Expenses,5001,Agency Fees for Estate Surveyor NAME REDACTED - 12mths,02/12/2022,0174040,"1,711.20",Revenue,Vivid Resourcing Ltd,76938,,
Chorley Borough Council,http://statistics.data.gov.uk/id/local-authority/30UE,Central Support Services,1009,EARL - Communities,External Contractor,40198,Miscellaneous Expenses,5034,Charge for supply of contractors,02/12/2022,0174052,993.00,Revenue,Vivid Resourcing Ltd,76938,,
Chorley Borough Council,http://statistics.data.gov.uk/id/local-authority/30UE,Central Support Services,1009,GROW - Commercial & Property,Agency Staff,13000,Direct Employee Expenses,5001,Building surveyor fees and mileage for 6 months Housing,02/12/2022,0174097,"1,352.13",Revenue,Vivid Resourcing Ltd,76938,,
Chorley Borough Council,http://statistics.data.gov.uk/id/local-authority/30UE,Central Support Services,1009,GROW - Commercial & Property,Agency Staff,13000,Direct Employee Expenses,5001,Agency Fees for Estate Surveyor Sebastian Berry - 12mths,02/12/2022,0174098,933.36,Revenue,Vivid Resourcing Ltd,76938,,
Chorley Borough Council,http://statistics.data.gov.uk/id/local-authority/30UE,Economic Development,1096,GROW - Commercial & Property,Agency Staff,13000,Direct Employee Expenses,5001,NAME REDACTED Interim Service Lead - Start 12.09.2022 for 6months,07/12/2022,0174099,"2,186.25",Revenue,Vivid Resourcing Ltd,76938,,
Chorley Borough Council,http://statistics.data.gov.uk/id/local-authority/30UE,Central Support Services,1009,GROW - Commercial & Property,Agency Staff,13000,Direct Employee Expenses,5001,Building surveyor fees and mileage for 6 months Housing,02/12/2022,0174100,"1,406.73",Revenue,Vivid Resourcing Ltd,76938,,
Chorley Borough Council,http://statistics.data.gov.uk/id/local-authority/30UE,Central Support Services,1009,GROW - Commercial & Property,Agency Staff,13000,Direct Employee Expenses,5001,Building surveyor fees,21/12/2022,0174232,"1,735.50",Revenue,Vivid Resourcing Ltd,76938,,
Chorley Borough Council,http://statistics.data.gov.uk/id/local-authority/30UE,Central Support Services,1009,GROW - Commercial & Property,Agency Staff,13000,Direct Employee Expenses,5001,Building surveyor fees,21/12/2022,0174237,"1,199.25",Revenue,Vivid Resourcing Ltd,76938,,
Chorley Borough Council,http://statistics.data.gov.uk/id/local-authority/30UE,Central Support Services,1009,EARL - Communities,External Contractor,40198,Miscellaneous Expenses,5034,NAME REDACTED Contractors,07/12/2022,0174238,"1,085.70",Revenue,Vivid Resourcing Ltd,76938,,
Chorley Borough Council,http://statistics.data.gov.uk/id/local-authority/30UE,Central Support Services,1009,GROW - Commercial & Property,Agency Staff,13000,Direct Employee Expenses,5001,Building surveyor fees,21/12/2022,0174266,"1,198.08",Revenue,Vivid Resourcing Ltd,76938,,
Chorley Borough Council,http://statistics.data.gov.uk/id/local-authority/30UE,Central Support Services,1009,EARL - Communities,External Contractor,40198,Miscellaneous Expenses,5034,NAME REDACTED Contractors,21/12/2022,0174312,"1,344.79",Revenue,Vivid Resourcing Ltd,76938,,
Chorley Borough Council,http://statistics.data.gov.uk/id/local-authority/30UE,Central Support Services,1009,EARL - Communities,External Contractor,40198,Miscellaneous Expenses,5034,NAME REDACTED Contractors,21/12/2022,0174313,993.00,Revenue,Vivid Resourcing Ltd,76938,,
Chorley Borough Council,http://statistics.data.gov.uk/id/local-authority/30UE,Central Support Services,1009,EARL - Communities,External Contractor,40198,Miscellaneous Expenses,5034,NAME REDACTED Contractors,14/12/2022,0174468,794.40,Revenue,Vivid Resourcing Ltd,76938,,
Chorley Borough Council,http://statistics.data.gov.uk/id/local-authority/30UE,Central Support Services,1009,EARL - Communities,External Contractor,40198,Miscellaneous Expenses,5034,NAME REDACTED Contractors,14/12/2022,0174513,993.00,Revenue,Vivid Resourcing Ltd,76938,,
Chorley Borough Council,http://statistics.data.gov.uk/id/local-authority/30UE,Central Support Services,1009,EARL - Communities,External Contractor,40198,Miscellaneous Expenses,5034,NAME REDACTED Contractors,14/12/2022,0174514,"1,036.35",Revenue,Vivid Resourcing Ltd,76938,,
Chorley Borough Council,http://statistics.data.gov.uk/id/local-authority/30UE,Economic Development,1096,GROW - Commercial & Property,Agency Staff,13000,Direct Employee Expenses,5001,NAME REDACTED Interim Service Lead - Start 12.09.2022 for 6months,21/12/2022,0174554,"2,062.50",Revenue,Vivid Resourcing Ltd,76938,,
Chorley Borough Council,http://statistics.data.gov.uk/id/local-authority/30UE,Central Support Services,1009,EARL - Communities,External Contractor,40198,Miscellaneous Expenses,5034,NAME REDACTED Contractors,21/12/2022,0174555,"1,085.70",Revenue,Vivid Resourcing Ltd,76938,,
Chorley Borough Council,http://statistics.data.gov.uk/id/local-authority/30UE,Central Support Services,1009,EARL - Communities,External Contractor,40198,Miscellaneous Expenses,5034,NAME REDACTED Contractors,21/12/2022,0174712,678.56,Revenue,Vivid Resourcing Ltd,76938,,
Chorley Borough Council,http://statistics.data.gov.uk/id/local-authority/30UE,Central Support Services,1009,EARL - Communities,External Contractor,40198,Miscellaneous Expenses,5034,NAME REDACTED Contractors,21/12/2022,0174713,993.00,Revenue,Vivid Resourcing Ltd,76938,,
Chorley Borough Council,http://statistics.data.gov.uk/id/local-authority/30UE,Central Support Services,1009,GROW - Commercial & Property,Agency Staff,13000,Direct Employee Expenses,5001,Building surveyor fees and mileage for 6 monthsHousing,21/12/2022,0174826,"2,831.40",Revenue,Vivid Resourcing Ltd,76938,,
Chorley Borough Council,http://statistics.data.gov.uk/id/local-authority/30UE,Economic Development,1096,GROW - Commercial & Property,Agency Staff,13000,Direct Employee Expenses,5001,NAME REDACTED Interim Service Lead - Start 12.09.2022 for 6months,21/12/2022,0174903,"2,310.00",Revenue,Vivid Resourcing Ltd,76938,,
Chorley Borough Council,http://statistics.data.gov.uk/id/local-authority/30UE,Economic Development,1096,GROW - Commercial & Property,Agency Staff,13000,Direct Employee Expenses,5001,NAME REDACTED Interim Service Lead - Start 12.09.2022 for 6months,21/12/2022,0174904,"2,268.75",Revenue,Vivid Resourcing Ltd,76938,,
Chorley Borough Council,http://statistics.data.gov.uk/id/local-authority/30UE,Central Support Services,1009,GROW - Commercial & Property,Agency Staff,13000,Direct Employee Expenses,5001,Building surveyor fees and mileage for 6 monthsHousing,21/12/2022,0174905,"1,376.70",Revenue,Vivid Resourcing Ltd,76938,,
Chorley Borough Council,http://statistics.data.gov.uk/id/local-authority/30UE,Central Support Services,1009,GROW - Commercial & Property,Agency Staff,13000,Direct Employee Expenses,5001,Agency Fees for Estate Surveyor NAME REDACTED - 12mths,21/12/2022,0174906,888.00,Revenue,Vivid Resourcing Ltd,76938,,
Chorley Borough Council,http://statistics.data.gov.uk/id/local-authority/30UE,Economic Development,1096,GROW - Commercial & Property,Agency Staff,13000,Direct Employee Expenses,5001,NAME REDACTED Interim Service Lead - Start 12.09.2022 for 6months,21/12/2022,0174907,"2,378.75",Revenue,Vivid Resourcing Ltd,76938,,
Chorley Borough Council,http://statistics.data.gov.uk/id/local-authority/30UE,Central Support Services,1009,GROW - Commercial & Property,Agency Staff,13000,Direct Employee Expenses,5001,Agency Fees for Estate Surveyor NAME REDACTED - 12mths,21/12/2022,0174908,942.00,Revenue,Vivid Resourcing Ltd,76938,,
Chorley Borough Council,http://statistics.data.gov.uk/id/local-authority/30UE,Central Support Services,1009,CUST - Customer & Digital,Computer Equipment - Security,40106,Communication and Computing,5028,1 oct 2022,02/12/2022,0174181,980.86,Revenue,Vodafone Ltd,60180,,
Chorley Borough Council,http://statistics.data.gov.uk/id/local-authority/30UE,Central Support Services,1009,CUST - Customer & Digital,Consultants` Fees,40077,Services,5027,cancellation of server room work TH,07/12/2022,0174482,"1,090.00",Revenue,VP-AV Ltd,81653,,
Chorley Borough Council,http://statistics.data.gov.uk/id/local-authority/30UE,Central Support Services,1009,GROW - Commercial & Property,General Repairs - Reactive,20004,Repairs Maintenance & Alts,5005,Bengal St  - Electrical Reactive Repairs,14/12/2022,0173705,809.41,Revenue,Walker Gabbott Electrical Ltd,83932,,
Chorley Borough Council,http://statistics.data.gov.uk/id/local-authority/30UE,Central Support Services,1009,GROW - Commercial & Property,General Repairs - Reactive,20004,Repairs Maintenance & Alts,5005,Union St  - Electrical Reactive Repairs,07/12/2022,0174033,300.00,Revenue,Walker Gabbott Electrical Ltd,83932,,
Chorley Borough Council,http://statistics.data.gov.uk/id/local-authority/30UE,Central Support Services,1009,GROW - Commercial & Property,General Repairs - Reactive,20004,Repairs Maintenance & Alts,5005,materials,07/12/2022,0174033,290.00,Revenue,Walker Gabbott Electrical Ltd,83932,,
Chorley Borough Council,http://statistics.data.gov.uk/id/local-authority/30UE,Capital,Capital,GROW - Commercial & Property,Main Contractor,03007,Capital Expenditure,Capital,All SeasonsReference � DG 240222-1 (CBC)Electrical Installation of replacement Pool Hall lighting,14/12/2022,0174035,"5,310.00",Capital,Walker Gabbott Electrical Ltd,83932,,
Chorley Borough Council,http://statistics.data.gov.uk/id/local-authority/30UE,Tourism,1039,GOVN - Policy & Governance,External Contractor,40198,Miscellaneous Expenses,5034,"Testing, install and removal of supplies for CFS",02/12/2022,0174156,"1,691.31",Revenue,Walker Gabbott Electrical Ltd,83932,,
Chorley Borough Council,http://statistics.data.gov.uk/id/local-authority/30UE,Central Support Services,1009,GROW - Commercial & Property,General Repairs - Reactive,20004,Repairs Maintenance & Alts,5005,Primrose  - Electrical Reactive Repairs,21/12/2022,0174233,996.62,Revenue,Walker Gabbott Electrical Ltd,83932,,
Chorley Borough Council,http://statistics.data.gov.uk/id/local-authority/30UE,Capital,Capital,GROW - Commercial & Property,Purchase Of Vehicles & Plant,03013,Capital Expenditure,Capital,Primrose Gardens Caf� Installation of new sockets for kitchen refurb and move supplies to suit,02/12/2022,0174235,"1,234.66",Capital,Walker Gabbott Electrical Ltd,83932,,
Chorley Borough Council,http://statistics.data.gov.uk/id/local-authority/30UE,Central Support Services,1009,GROW - Commercial & Property,General Repairs - Reactive,20004,Repairs Maintenance & Alts,5005,Bengal St  - Electrical Reactive Repairs,21/12/2022,0174326,265.36,Revenue,Walker Gabbott Electrical Ltd,83932,,
Chorley Borough Council,http://statistics.data.gov.uk/id/local-authority/30UE,Central Support Services,1009,GROW - Commercial & Property,General Repairs - Reactive,20004,Repairs Maintenance & Alts,5005,Cotswold  - Electrical Reactive Repairs,14/12/2022,0174692,467.60,Revenue,Walker Gabbott Electrical Ltd,83932,,
Chorley Borough Council,http://statistics.data.gov.uk/id/local-authority/30UE,Central Support Services,1009,GROW - Commercial & Property,General Repairs - Reactive,20004,Repairs Maintenance & Alts,5005,Town Hall  - Electrical Reactive Repairs,14/12/2022,0174694,"1,159.92",Revenue,Walker Gabbott Electrical Ltd,83932,,
Chorley Borough Council,http://statistics.data.gov.uk/id/local-authority/30UE,Capital,Capital,GROW - Commercial & Property,Consultants Fees,03025,Capital Expenditure,Capital,Hoarding + Design Works - Brooke Arms site,07/12/2022,0174473,"5,720.00",Capital,Wallbank Fencing Limited,80942,,
Chorley Borough Council,http://statistics.data.gov.uk/id/local-authority/30UE,Central Support Services,1009,GROW - Commercial & Property,Water - Metered Supplies,20022,Water Services,5009,11/10 to 10/11/22,02/12/2022,0174316,567.78,Revenue,WaterPlus 4083538012 Destructor Stump Lane Chorley,85458,,
Chorley Borough Council,http://statistics.data.gov.uk/id/local-authority/30UE,Business Support,1095,GROW - Commercial & Property,Water - Metered Supplies,20022,Water Services,5009,14/10 to 13/11/22,02/12/2022,0174315,994.75,Revenue,WaterPlus 6002259172 The Strawberry Fields,86926,,
Chorley Borough Council,http://statistics.data.gov.uk/id/local-authority/30UE,Central Support Services,1009,GROW - Commercial & Property,Professional Fees,40063,Services,5027,"Advice on construction contract with Robertson Construction England re Tatton Gardens project at Eaves Lane, Chorley",07/12/2022,0174448,"3,000.00",Revenue,Weightmans LLP,22212,,
Chorley Borough Council,http://statistics.data.gov.uk/id/local-authority/30UE,Central Support Services,1009,GOVN - Policy & Governance,Postages,40082,Communication and Computing,5028,Weekly collection of mail from Union Street,02/12/2022,0174151,237.44,Revenue,Whistl North Limited,67256,,
Chorley Borough Council,http://statistics.data.gov.uk/id/local-authority/30UE,Central Support Services,1009,GOVN - Policy & Governance,Postages,40082,Communication and Computing,5028,,02/12/2022,0174151,13.60,Revenue,Whistl North Limited,67256,,
Chorley Borough Council,http://statistics.data.gov.uk/id/local-authority/30UE,Central Support Services,1009,GOVN - Policy & Governance,Postages,40082,Communication and Computing,5028,Weekly collection of mail from Union Street,14/12/2022,0174491,491.69,Revenue,Whistl North Limited,67256,,
Chorley Borough Council,http://statistics.data.gov.uk/id/local-authority/30UE,Central Support Services,1009,GOVN - Policy & Governance,Postages,40082,Communication and Computing,5028,,14/12/2022,0174491,2.00,Revenue,Whistl North Limited,67256,,
Chorley Borough Council,http://statistics.data.gov.uk/id/local-authority/30UE,Central Support Services,1009,GOVN - Policy & Governance,IT Software - Annual Licences,40101,Communication and Computing,5028,"Extension of Greater.Jobs for 6 months. 80 job pack, ATS back office and central support team",21/12/2022,0174257,"11,600.00",Revenue,Wigan Borough Council,84081,,
Chorley Borough Council,http://statistics.data.gov.uk/id/local-authority/30UE,Central Support Services,1009,GROW - Commercial & Property,General Repairs - Reactive,20004,Repairs Maintenance & Alts,5005,"ADDRESS REDACTED Include for all excavation, disposal, laying, reinstatement and traffic management.",14/12/2022,0174561,"2,780.00",Revenue,William Pye Ltd,60564,,
Chorley Borough Council,http://statistics.data.gov.uk/id/local-authority/30UE,Central Support Services,1009,CUST - Customer & Digital,Other Fees,40212,Miscellaneous Expenses,5034,Xeretec - printing,14/12/2022,0174475,459.31,Revenue,Xeretec Document Solutions,20052,,
Chorley Borough Council,http://statistics.data.gov.uk/id/local-authority/30UE,Central Support Services,1009,CUST - Customer & Digital,Other Fees,40212,Miscellaneous Expenses,5034,Xeretec - printing,14/12/2022,0174518,493.41,Revenue,Xeretec Document Solutions,20052,,
Chorley Borough Council,http://statistics.data.gov.uk/id/local-authority/30UE,Central Support Services,1009,GROW - Commercial & Property,General Repairs - Reactive,20004,Repairs Maintenance & Alts,5005,Community Centres  -  Auto doors and shutter reactive repairs,14/12/2022,0174711,"1,360.00",Revenue,Yates Entrance Solutions Ltd,84714,,
Chorley Borough Council,http://statistics.data.gov.uk/id/local-authority/30UE,Homelessness,1075,EARL - Communities,Service Fees,40056,Services,5027,taxi from u/s to purple rmz - hotel placement NAME REDACTED,21/12/2022,0173009,20.00,Revenue,Yellow Cabs (North West Ltd),52276,,
Chorley Borough Council,http://statistics.data.gov.uk/id/local-authority/30UE,Homelessness,1075,EARL - Communities,Service Fees,40056,Services,5027,taxi from us mercury hotel - NAME REDACTED,21/12/2022,0173009,30.00,Revenue,Yellow Cabs (North West Ltd),52276,,
Chorley Borough Council,http://statistics.data.gov.uk/id/local-authority/30UE,Homelessness,1075,EARL - Communities,Grants To Other Organisations,40127,Grants and Subscriptions,5031,Taxi for NAME REDACTED on behalf of NAME REDACTED from Rivington Lodge Hotel to The Mercury Motel Westhoughton,21/12/2022,0173009,18.00,Revenue,Yellow Cabs (North West Ltd),52276,,
Chorley Borough Council,http://statistics.data.gov.uk/id/local-authority/30UE,Homelessness,1075,EARL - Communities,Service Fees,40056,Services,5027,Taxi - NAME REDACTED - 08/09/22 -,21/12/2022,0173009,18.00,Revenue,Yellow Cabs (North West Ltd),52276,,
Chorley Borough Council,http://statistics.data.gov.uk/id/local-authority/30UE,Homelessness,1075,EARL - Communities,Service Fees,40056,Services,5027,Taxi from TA RIVINGTON LODGE TO US - 09/09/22 - NAME REDACTED,21/12/2022,0173009,18.00,Revenue,Yellow Cabs (North West Ltd),52276,,
Chorley Borough Council,http://statistics.data.gov.uk/id/local-authority/30UE,Business Support,1095,EARL - Communities,Misc Expenses,40200,Miscellaneous Expenses,5034,Transport to EVA awards event Sept 2022,21/12/2022,0173009,300.00,Revenue,Yellow Cabs (North West Ltd),52276,,
Chorley Borough Council,http://statistics.data.gov.uk/id/local-authority/30UE,Central Support Services,1009,EARL - Communities,Misc Expenses,40200,Miscellaneous Expenses,5034,4 x Oblong Folding Tables (Beech) 915 (L) x 760mm (W) x 698mm (H) Adult Height ,02/12/2022,0172883,393.40,Revenue,Yorkshire Purchasing Org,18098,,
Chorley Borough Council,http://statistics.data.gov.uk/id/local-authority/30UE,Central Support Services,1009,EARL - Communities,Misc Expenses,40200,Miscellaneous Expenses,5034,"3 x packs of 4 Non-linking Folding Chairs, with Polypropylene Back Rest 455(SH) x 465mm (W) - (Blue)",02/12/2022,0172999,258.60,Revenue,Yorkshire Purchasing Org,18098,,
Chorley Borough Council,http://statistics.data.gov.uk/id/local-authority/30UE,Capital,Capital,EARL - Communities,Main Contractor,03007,Capital Expenditure,Capital,Really Useful Storage Box & Lid 84 Litres x 14,07/12/2022,0174258,259.14,Capital,Yorkshire Purchasing Org,18098,,
